Cogmind - Beta 16.1 @@@ ROGUE MODE // 2026.04.29 @ 12:58:45 Player: stevie364 Result: Destroyed by Executioner with Helical Railgun Performance ------------- Evolutions (9) 4500 Regions Visited (33) 6600 Robots Destroyed (315) 1575 Value Destroyed (13864) 13864 Prototype IDs (103) 2060 Alien Tech Used (1) 200 Bonus (17314) 17314 TOTAL SCORE: 46113 Bonus ------- Triggered High Security 500 High Alert Combat Kills 1841 Follower Combat Kills 3693 Hunted by Unchained 500 Entered Garrisons 200 Network Hubs Disabled 200 Aligned with FarCom 300 Met Data Miner 300 Acquired ECA 300 Met Zhirov 300 Met Warlord at Base 500 MAIN.C Attacked Warlord 500 Warlord Defense Kills 388 Built Enhanced Grunts 300 Met R17 at Cetus 500 Met R17 at Research 2000 Met Warlord at Research 2000 Invited to Help at Command 2000 Destroyed MAIN.C Guards 500 Met Warlord at Command 2000 Friendly Fire -1508 Cogmind --------- Core Integrity 0/1600 Matter 10/300 Energy 75/100 System Corruption 32% Temperature Cool (0) Movement Core (600) Ox11 Location -1/Command Parts ------- > --- POWER (2) -------- (None) > --- PROPULSION (8) --- (None) > --- UTILITY (11) ----- Large Storage Unit Experimental Optical Array Advanced Targeting Computer Experimental Targeting Computer Advanced Target Analyzer Graphene Brace > --- WEAPON (4) ------- Ragnarok Missile Launcher > --- INVENTORY (15) --- Micro Antimatter Reactor Micro Antimatter Reactor Micro Antimatter Reactor Transdimensional Reconstructor Peak State ------------ > --- POWER ------------ Micro Antimatter Reactor Micro Antimatter Reactor > --- PROPULSION ------- Cooled Gravmag System Combat Gravmag System Cooled Antigrav System Cooled Antigrav System Antigrav Array Antigrav Array > --- UTILITY ---------- Large Storage Unit Experimental Optical Array Experimental Targeting Computer Advanced Recoil Stabilizer Advanced Weapon Cycler Advanced Transmission Jammer Experimental Reaction Control System Centrium Medium Armor Plating Advanced Powered Armor Advanced Force Field Advanced Hacking Suite > --- WEAPON ----------- Helical Railgun Helical Railgun Helical Railgun Helical Railgun > --- INVENTORY -------- Micro Antimatter Reactor Cooled Antigrav System Combat Antigrav System Precision Matter Filter Centrium Light Armor Plating Graphene Brace Combat Drone Bay Transdimensional Reconstructor Vortex Driver Point Singularity Launcher Advanced Remote Datajack Ionic Axe [Rating: 203] Favorites ----------- Power Micro Antimatter Reactor Engine Light Angular Momentum Engine Power Core Micro Fission Core Reactor Micro Antimatter Reactor Propulsion Gravmag Array Treads Improved Treads Leg Improved Titanium Leg Hover Unit Gravmag Array Utility Large Storage Unit Device Seismic Detector Storage Large Storage Unit Processor Experimental Optical Array Hackware Hacking Suite Protection Heavy Reflective Plating Weapon Helical Railgun Energy Gun Advanced Beam Rifle Energy Cannon Neutron Cannon Ballistic Gun Helical Railgun Ballistic Cannon Hardcell Cannon Launcher Point Singularity Launcher Special Weapon Advanced Remote Datajack Impact Weapon Flail Slashing Weapon Ionic Axe Piercing Weapon Spear Build | -11 -10 -10 -10 -9 -8 -8 -8 -7 -7 -7 -7 -6 -6 -6 -6 -6 -6 -5 -5 -5 -5 -5 -5 -4 -4 -4 -4 -4 -3 -3 -2 -1 -1 ------- Run | Yrd Mat Min Exi Min Mat Gar Mat Fac Low Low Dat Pro Fac Ext Cet Arc Hub Fac Was Fac Upp Upp War Pro Fac Upp Upp Zhi Pro Res Res Acc Com Slots Evolved 18 | . . . . . 4 . . 2 . . . . 2 . . . . 2 . . . . . . 2 . . . . 2 2 2 . Power 1 | . . . . . . . . . . . . . . . . . . . . . . . . . 1 . . . . . . . . Propulsion 6 | . . . . . 2 . . 1 . . . . 1 . . . . . . . . . . . 1 . . . . 1 . . . Utility 9 | . . . . . 2 . . 1 . . . . 1 . . . . . . . . . . . . . . . . 1 2 2 . Weapon 2 | . . . . . . . . . . . . . . . . . . 2 . . . . . . . . . . . . . . . Parts Attached 322 | 7 6 1 . 1 32 4 10 19 1 4 . . 21 14 8 1 10 9 3 23 3 3 17 . 25 2 4 4 6 25 20 11 28 Power 35 | 1 1 . . . 3 1 1 3 . 2 . . 1 2 1 . . 1 . 4 . . . . 3 . . 1 3 3 1 2 1 Engine 11 | 1 . . . . 1 1 1 2 . . . . . 1 . . . . . 3 . . . . 1 . . . . . . . . Core 13 | . 1 . . . 2 . . 1 . 2 . . 1 1 1 . . 1 . 1 . . . . 2 . . . . . . . . Reactor 11 | . . . . . . . . . . . . . . . . . . . . . . . . . . . . 1 3 3 1 2 1 Propulsion 81 | 2 2 . . . 13 . . 6 . 2 . . 6 6 2 . 8 2 2 5 . . 3 . 7 . . . . 7 1 1 6 Treads 15 | 2 2 . . . 9 . . . . . . . . . . . . . . . . . . . . . . . . . . . 2 Leg 20 | . . . . . 4 . . . . . . . . 5 . . 8 2 1 . . . . . . . . . . . . . . Wheel . | . . . . . . . . . . . . . . . . . . . . . . . . . . . . . . . . . . Hover 46 | . . . . . . . . 6 . 2 . . 6 1 2 . . . 1 5 . . 3 . 7 . . . . 7 1 1 4 Flight . | . . . . . . . . . . . . . . . . . . . . . . . . . . . . . . . . . . Utility 116 | 2 1 . . . 7 . 4 8 1 . . . 11 4 3 1 2 2 . 10 1 . 6 . 9 1 3 2 2 11 9 6 10 Device 46 | 1 . . . . 3 . 2 4 1 . . . . 1 . . 1 . . 6 1 . 4 . 3 . . . . 6 3 4 6 Storage 9 | 1 1 . . . . . . . . . . . . . . . . . . 2 . . . . . . . 1 1 1 1 . 1 Processor 14 | . . . . . . . . 1 . . . . 4 . . . 1 . . . . . 1 . . . . . . 2 3 1 1 Hackware 13 | . . . . . . . . 1 . . . . 6 . . 1 . . . . . . . . 2 . 1 . 1 1 . . . Protection 34 | . . . . . 4 . 2 2 . . . . 1 3 3 . . 2 . 2 . . 1 . 4 1 2 1 . 1 2 1 2 Artifact . | . . . . . . . . . . . . . . . . . . . . . . . . . . . . . . . . . . Weapon 90 | 2 2 1 . 1 9 3 5 2 . . . . 3 2 2 . . 4 1 4 2 3 8 . 6 1 1 1 1 4 9 2 11 Energy Gun 16 | . . . . . 5 . 2 . . . . . . . 1 . . 1 . . . 1 2 . . . 1 . 1 1 1 . . Energy Cannon 10 | . . . . . . . 1 1 . . . . . . . . . . . 1 1 . 2 . . . . . . . 2 . 2 Ballistic Gun 37 | 2 1 . . 1 2 2 2 . . . . . 1 1 1 . . 3 . . 1 . 3 . 2 1 . 1 . 1 4 1 7 Ballistic Cannon 6 | . . . . . . . . . . . . . 1 . . . . . . 1 . 1 . . . . . . . 1 1 . 1 Launcher 11 | . . 1 . . 1 1 . . . . . . . 1 . . . . 1 . . . 1 . 2 . . . . 1 1 . 1 Special Weapon 1 | . . . . . . . . . . . . . . . . . . . . . . . . . . . . . . . . 1 . Impact Weapon 1 | . 1 . . . . . . . . . . . . . . . . . . . . . . . . . . . . . . . . Slashing Weapon 6 | . . . . . 1 . . 1 . . . . 1 . . . . . . 1 . 1 . . 1 . . . . . . . . Piercing Weapon 2 | . . . . . . . . . . . . . . . . . . . . 1 . . . . 1 . . . . . . . . Special Melee Weapon . | . . . . . . . . . . . . . . . . . . . . . . . . . . . . . . . . . . Unidentified Prototypes 49 | . . . . . 3 . 3 3 1 . . . . . 3 . 1 . 1 1 . . 11 . 4 . . 3 . 5 6 1 3 Corrupted Parts 4 | . . . . . . . . . . . . . . . . . . . . . . . . . . . . . . . 2 1 1 System Corruption 18 | . . . . . . . . . . . . . . . . . . . . . . . . . . . . . . . 8 1 9 Parts Lost 113 | . . . . . 9 2 . . . 2 . 4 1 5 . 1 4 15 4 5 . . . . 6 . . . 2 3 . 15 35 Power 13 | . . . . . 2 1 . . . . . . . . . . 1 1 . 1 . . . . 2 . . . 1 . . 2 2 Propulsion 39 | . . . . . 2 . . . . 2 . 3 1 5 . 1 1 6 2 . . . . . 1 . . . . 2 . 2 11 Utility 37 | . . . . . 2 1 . . . . . . . . . . 2 5 2 2 . . . . 3 . . . 1 1 . 5 13 Weapon 24 | . . . . . 3 . . . . . . 1 . . . . . 3 . 2 . . . . . . . . . . . 6 9 Highest Loss Streak 17 | . . . . . 4 1 . . . 1 . 2 1 1 . 1 4 15 4 2 . . . . 1 . . . 1 2 . 3 17 To Critical Strikes 1 | . . . . . . . . . . . . . . 1 . . . . . . . . . . . . . . . . . . . Average Backups 12 | . 9 15 14 12 11 11 11 11 11 11 11 10 11 11 11 10 9 10 6 6 13 14 13 14 14 15 14 14 14 14 14 13 12 Power . | . 1 2 2 3 2 . . . . . 1 1 . . 1 1 . 1 . . 1 1 1 1 . 1 1 1 1 1 1 1 2 Propulsion 2 | . 3 6 5 2 . 1 2 1 1 . . . . 1 . . . 1 . 2 5 5 4 2 1 2 2 2 2 1 2 1 1 Utility 3 | . . . 1 1 1 3 2 3 5 5 5 4 4 4 3 3 3 3 1 1 4 3 4 7 7 6 5 5 5 6 6 5 4 Weapon 4 | . 4 6 5 6 7 7 7 6 3 4 4 4 4 4 4 5 5 3 3 2 3 4 4 4 5 6 6 5 5 4 3 2 2 Tool/Special . | . . . . . . . . . . . . . . . . . . . . . . . . . . . . . . . . . . Unused Backups 62 | . 3 1 5 . 7 1 4 4 2 . . . 2 3 2 . 1 . 3 1 . 2 3 . 3 . . 1 . 6 2 . 6 Power 8 | . . . . . 1 1 . . . . . . . . . . . . 1 . . . . . . . . . . 2 . . 3 Propulsion 18 | . 3 1 4 . . . . . . . . . . 1 . . 1 . . . . 1 3 . . . . . . 3 1 . . Utility 22 | . . . . . 1 . 2 1 2 . . . 1 2 2 . . . 2 1 . 1 . . 3 . . 1 . 1 . . 2 Weapon 13 | . . . 1 . 5 . 2 3 . . . . 1 . . . . . . . . . . . . . . . . . 1 . . Tool/Special 1 | . . . . . . . . . . . . . . . . . . . . . . . . . . . . . . . . . 1 Average Slot Usage (%) 85 | . 99 100 86 100 94 99 99 92 90 76 76 57 71 92 97 87 87 89 13 54 74 76 76 82 81 89 86 71 85 84 86 87 83 Engine 1 | . 12 . . . 2 . 8 2 . . . . . 1 4 . . . . 2 . . . . 1 5 5 5 1 . . . . Core 4 | . 1 14 14 14 5 8 . 4 7 7 7 5 3 4 1 6 5 4 . . 5 5 5 5 6 5 5 5 1 . . . . Reactor 1 | . . . . . . . . . . . . . . . . . . . . . . . . . . . . . 7 8 8 7 7 Treads 5 | . 28 28 28 28 33 . . . . . . . . . . . . . . . . . . . . . . . . . . . . Leg 6 | . . . . . . 36 36 14 . . . . . 7 17 . 16 32 5 . . . . . . . . . . . . . . Hover 16 | . . . . . . . . 20 38 38 38 28 25 30 19 27 13 . . 16 17 17 17 23 24 26 26 26 26 27 26 23 20 Device 11 | . 13 14 14 14 12 8 17 11 7 7 7 11 . 1 8 13 11 4 . 12 17 17 16 17 9 10 10 9 10 7 12 20 17 Storage 6 | . 14 14 14 14 9 9 9 7 7 7 7 7 6 6 6 6 6 5 1 3 5 5 5 5 5 5 5 5 5 4 4 4 4 Processor 2 | . . . . . . . . 5 7 7 7 . 9 4 . . 1 4 . . . . . . . . . . . 3 4 8 12 Hackware 4 | . . . . . . . . 3 6 . . . 16 13 13 13 13 9 . . . . . . 4 5 5 5 5 4 4 4 2 Protection 6 | . . . . . 11 18 9 7 6 . . . 2 12 10 6 3 6 2 2 5 5 5 5 7 10 7 6 6 6 8 3 4 Energy Gun 1 | . . . . . 7 9 7 . . . . . . . . . 5 4 . . . 4 2 . . . 2 . 2 4 3 . . Energy Cannon 1 | . . . . . . . 1 3 . . . . 2 1 . . . . . 3 4 1 4 5 4 5 5 . 1 . . . 1 Ballistic Gun 8 | . 26 27 14 27 9 6 6 4 . . . . . 1 12 13 6 12 1 4 4 5 8 11 6 5 2 . 10 9 9 11 7 Slashing Weapon 2 | . . . . . . . 2 3 6 7 7 2 3 4 . . . . . . 5 4 5 5 3 5 5 5 5 4 3 2 . Peak Build Rating 203 | 7 13 13 16 17 42 45 46 51 64 66 65 65 68 72 89 71 86 103 69 87 86 90 101 100 126 121 114 120 127 156 187 203 195 Average Rating 81 | 5 8 13 12 16 29 41 45 47 51 64 65 48 49 68 78 69 70 94 22 65 85 87 92 99 114 113 111 93 120 144 175 194 168 On Entrance 72 | . 7 13 13 16 17 42 45 45 51 64 65 65 17 68 70 71 69 86 62 18 78 86 90 100 100 121 113 111 120 120 155 187 163 Avg Prop Armor Cover (%) 7 | . . . . . . . . 2 . . . . . 5 4 . 10 . 3 13 . . 2 . . . . . . 3 . 1 2 Naked Turns 158 | . . . . . . . . . . . . . . . . . . . 158 . . . . . . . . . . . . . . Heaviest Build 110 | 13 30 29 29 31 43 48 48 52 43 41 40 41 39 51 57 49 49 66 49 69 62 70 73 67 100 79 78 63 81 94 106 102 110 Greatest Support 123 | 40 46 46 46 46 92 80 80 80 40 47 43 47 59 83 83 43 110 110 30 66 66 66 70 68 83 80 80 80 80 111 116 123 123 Greatest Overweight (x) 5 | . . . . . 1 . . . 1 1 . 1 2 2 3 1 5 1 4 1 . 1 1 . 1 . . . 1 1 1 1 1 Average Overweight (x) . | . . . . . . . . . . . . . . . . 1 . . . . . . . . . . . . . . . . . Largest Inventory Capacity 20 | 8 15 15 15 15 15 15 15 15 15 15 15 15 15 15 15 15 15 15 15 15 15 15 15 15 15 15 15 15 15 15 20 15 15 Average Capacity 14 | 7 12 15 15 15 15 15 15 15 15 15 15 15 15 15 15 15 15 15 8 11 15 15 15 15 15 15 15 15 15 15 15 15 15 Most Carried 15 | . 15 15 15 15 15 15 15 15 15 15 14 15 15 15 15 13 15 15 10 15 15 15 15 15 15 15 15 15 15 15 15 15 15 Average Carried 13 | . 9 15 14 14 14 14 14 14 14 14 14 13 14 14 14 13 12 13 6 7 14 14 14 15 14 15 14 14 14 14 14 13 12 Final Capacity 15 | 8 15 15 15 15 15 15 15 15 15 15 15 15 15 15 15 15 15 15 5 15 15 15 15 15 15 15 15 15 15 15 15 15 15 Final Carried 15 | . 15 15 15 15 15 14 15 14 15 14 14 15 15 14 13 13 15 10 5 14 15 15 15 15 15 15 15 15 15 15 15 15 4 Class Distribution -------------------- 36% | Mutant 20% | Scavenger-Tank 6% | Scavenger-Gunner 5% | Scavenger-Mutant 4% | Commander-Mutant 4% | Tank 3% | Hacker-Gladiator 3% | Scavenger-Skirmisher 3% | Hacker-Mutant 3% | Commander-Gladiator Dominant Class ---------------- Mutant | -10/Materials Mutant | -10/Mines Mutant | -10/Exiles Mutant | -9/Mines Mutant | -8/Materials Mutant | -8/Garrison Mutant | -8/Materials Scout | -7/Factory Mutant | -7/Lower Caves Mutant | -7/Lower Caves Mutant | -7/Data Miner Mutant | -6/Proximity Caves Hacker-Mutant | -6/Factory Commander-Gladiator | -6/Extension Commander-Mutant | -6/Cetus Commander-Mutant | -6/Archives Scavenger-Mutant | -6/Hub_04(d) Scavenger-Skirmisher | -5/Factory Mutant | -5/Waste Mutant | -5/Factory Mutant | -5/Upper Caves Scavenger-Tank | -5/Upper Caves Scavenger-Tank | -5/Warlord Scavenger-Tank | -4/Proximity Caves Scavenger-Tank | -4/Factory Tank | -4/Upper Caves Scavenger-Tank | -4/Upper Caves Scavenger-Mutant | -4/Zhirov Scavenger-Tank | -3/Proximity Caves Scavenger-Sprinter | -3/Research Tank | -2/Research Scavenger-Gunner | -1/Access Scavenger-Gunner | -1/Command Resources | -11 -10 -10 -10 -9 -8 -8 -8 -7 -7 -7 -7 -6 -6 -6 -6 -6 -6 -5 -5 -5 -5 -5 -5 -4 -4 -4 -4 -4 -3 -3 -2 -1 -1 ----------- Run | Yrd Mat Min Exi Min Mat Gar Mat Fac Low Low Dat Pro Fac Ext Cet Arc Hub Fac Was Fac Upp Upp War Pro Fac Upp Upp Zhi Pro Res Res Acc Com Matter Collected 13165 | 310 165 83 . 77 653 345 455 328 60 64 . . 402 338 254 3 315 456 79 910 255 521 421 21 1092 80 144 66 378 684 752 1501 1953 Remotely . | . . . . . . . . . . . . . . . . . . . . . . . . . . . . . . . . . . Salvage Created 15847 | 172 355 16 . 22 1116 643 922 574 205 146 . . 743 991 269 40 216 1082 457 1059 213 362 186 69 1207 83 134 368 402 876 328 1827 764 Parts 754 | 10 28 3 . 7 48 49 44 32 5 9 . . 39 37 10 5 6 51 . 61 7 17 16 6 64 4 4 1 19 23 24 104 21 Haulers Intercepted 23 | . 1 . . . 1 . 6 3 . . . . 2 1 . . . . . 1 . . . . 2 . . . . 4 1 1 . Recyclers Shooed 16 | . . 1 . 1 4 . . . . . . . . . . . . 3 . 4 . . . . . . . . . . . 2 1 Parts Field Recycled . | . . . . . . . . . . . . . . . . . . . . . . . . . . . . . . . . . . Retrieved Matter . | . . . . . . . . . . . . . . . . . . . . . . . . . . . . . . . . . . Parts Self-Destructed 70 | . . . . . . . . . 2 6 . . . . . . . . . . 3 11 . 5 . 6 3 1 33 . . . . Prevented 3 | . . . . . . . . . . . . . . . . . . . . . . . . . . 3 . . . . . . . Parts Restored . | . . . . . . . . . . . . . . . . . . . . . . . . . . . . . . . . . . Kills | -11 -10 -10 -10 -9 -8 -8 -8 -7 -7 -7 -7 -6 -6 -6 -6 -6 -6 -5 -5 -5 -5 -5 -5 -4 -4 -4 -4 -4 -3 -3 -2 -1 -1 ------- Run | Yrd Mat Min Exi Min Mat Gar Mat Fac Low Low Dat Pro Fac Ext Cet Arc Hub Fac Was Fac Upp Upp War Pro Fac Upp Upp Zhi Pro Res Res Acc Com Combat Hostiles Destroyed 228 | . 8 3 . 3 20 23 13 3 . 3 . . 9 13 4 . 2 15 3 13 4 4 3 4 19 1 1 . 11 2 8 28 8 Melee 31 | . . . . . 2 . . 2 . 3 . . 7 7 . . . . . 6 1 . . . 1 1 . . 1 . . . . Guns 114 | . 7 . . . 18 8 10 1 . . . . 2 . 4 . 2 15 . 2 . 3 2 2 3 . 1 . 3 2 4 22 3 Cannons 14 | . . . . . . . 2 . . . . . . . . . . . . 1 . 1 1 . 6 . . . 1 . . . 2 AOE 68 | . . 3 . 3 . 15 1 . . . . . . 6 . . . . 3 4 3 . . 2 9 . . . 6 . 4 6 3 Classes Destroyed 24 | 2 2 1 . . 4 . . 1 2 . . . 2 1 . . 1 2 1 . . . 1 . . . . . . . 2 . 2 Worker 16 | . . . . . 1 . . 4 . . . . 1 . . . . 2 . 2 . . . . 2 . . . . . 1 2 1 Builder 7 | . . . . . . . . . . . . . . . . . . 3 . 2 . . . . 2 . . . . . . . . Tunneler 10 | 4 . . . 1 . . . 3 . . . . . . . . . . . 1 . . . . . . . . . 1 . . . Hauler 23 | . 1 . . . 1 . 6 3 . . . . 2 1 . . . . . 1 . . . . 2 . . . . 4 1 1 . Recycler 19 | 1 . . . . 1 . . 2 . . . . . 2 . . 1 . . 2 . . . . 3 . . . . 2 . 2 3 Minesweeper 1 | . . . . . . . . . 1 . . . . . . . . . . . . . . . . . . . . . . . . Mechanic 1 | . . . . . . . . . . . . . . . . . . . . . . . . . . . . . . . . . 1 Operator 3 | . . . . . . . . . . . . . 1 . . 1 . . . . . . . . . . . . . . 1 . . Watcher 4 | . . . . . . . . . . . . . 1 . 1 . . . . . . . . . . . . . . 2 . . . Swarmer 64 | . . 3 . 3 . 14 2 . . . . . . 3 . . . . . 4 3 . . 4 9 . . . 8 . 5 6 . Cutter 2 | . . . . . . . . . . . . . . . . . . . . . . . . . . . . . . . . . 2 Saboteur 1 | . . . . . . . . . . . . . . . . . 1 . . . . . . . . . . . . . . . . Grunt 59 | . 8 . . . 12 7 6 . . 2 . . 2 4 . . 1 8 . 3 . . . . . . . . 1 . . 1 4 Brawler 6 | . . . . . 1 2 1 . . . . . . . . . . 2 . . . . . . . . . . . . . . . Duelist 1 | . . . . . . . . . . . . . . . . . . 1 . . . . . . . . . . . . . . . Protector 1 | . . . . . . . . . . . . . . . . . . . . . . . 1 . . . . . . . . . . Sentry 25 | . . . . . 6 . 4 1 . . . . . 5 . . . . . . 1 1 . . 2 1 1 . 2 1 . . . Hunter 11 | . . . . . 1 . . . . . . . 1 . . . . 1 . . . . 1 . 1 . . . . 1 1 3 1 Programmer 47 | . . . . . . . . 2 . 1 . . 6 . . . . 3 . 6 . 3 1 . 7 . . . . . . 18 . Behemoth 1 | . . . . . . . . . . . . . . 1 . . . . . . . . . . . . . . . . . . . Compactor 3 | . . . . . . . . . . . . . . . . . . . 3 . . . . . . . . . . . . . . Cetus Guard 4 | . . . . . . . . . . . . . . . 4 . . . . . . . . . . . . . . . . . . Combat Programmer 1 | . . . . . . . . . . . . . . . . . . . . . . . . . . . . . . . . . 1 Striker 1 | . . . . . . . . . . . . . . . . . . . . . . . . . . . . . . . 1 . . Executioner 1 | . . . . . . . . . . . . . . . . . . . . . . . . . . . . . . . 1 . . Decomposer 1 | . . . . . . . . . 1 . . . . . . . . . . . . . . . . . . . . . . . . Packrat 2 | . . . . . . . . . 1 . . . . . . . . . . . . . . . . . 1 . . . . . . Samaritan 4 | . . . . . . . . . 1 . . . . . . . . . . . 1 2 . . . . . . . . . . . Thug 2 | . . . . . . 1 . . . . . . . . . . . . . 1 . . . . . . . . . . . . . Wizard 1 | . . . . . . . . . . . . . . . . . . . . . . . . . . . . . . . . . 1 Best Kill Streak 15 | 2 2 3 . 3 3 4 4 4 1 1 . . 3 3 4 1 3 15 2 5 3 2 2 4 5 1 1 . 4 3 7 9 2 Combat Bots Only 10 | . 2 3 . 3 3 4 4 1 . 1 . . 2 3 3 . 2 10 2 4 3 2 2 4 5 1 1 . 4 1 6 8 2 Max Kills in Single Turn 5 | 1 1 1 . 2 2 3 1 1 1 1 . . 1 3 2 1 2 3 2 2 2 1 1 2 5 1 1 . 2 1 4 4 2 Gunslinging 1 | . . . . . . . . . . . . . . . . . . 1 . . . . . . . . . . . . . 1 . Exploded 5 | . . 1 . 2 . 3 1 . . . . . . 3 . . . . 2 2 2 . . 2 5 . . . 2 . 4 3 2 Melee 1 | . . . . . 1 . . 1 . 1 . . 1 1 . . . . . 1 1 . . . 1 1 . . 1 . . . . Uniques/NPCs Destroyed . | . . . . . . . . . . . . . . . . . . . . . . . . . . . . . . . . . . Combat | -11 -10 -10 -10 -9 -8 -8 -8 -7 -7 -7 -7 -6 -6 -6 -6 -6 -6 -5 -5 -5 -5 -5 -5 -4 -4 -4 -4 -4 -3 -3 -2 -1 -1 -------- Run | Yrd Mat Min Exi Min Mat Gar Mat Fac Low Low Dat Pro Fac Ext Cet Arc Hub Fac Was Fac Upp Upp War Pro Fac Upp Upp Zhi Pro Res Res Acc Com Hostile Shots Fired 1821 | . 42 9 . 4 117 68 41 21 3 60 . 72 32 112 2 . 70 208 6 147 7 19 6 20 142 6 4 . 24 43 18 256 262 Missed 575 | . 12 4 . 3 20 18 13 7 2 21 . 27 10 39 1 . 30 55 1 52 2 7 . 7 48 2 2 . 7 21 6 101 57 Intercepted 5 | . . . . . . . . . . . . . . . . . . . . . . . . . . . . . . . . . 5 Hits 1246 | . 30 5 . 1 97 50 28 14 1 39 . 45 22 73 1 . 40 153 5 95 5 12 6 13 94 4 2 . 17 22 12 155 205 Melee 24 | . . . . . 4 . . . . . . 1 . . . . 5 9 5 . . . . . . . . . . . . . . Projectile 1222 | . 30 5 . 1 93 50 28 14 1 39 . 44 22 73 1 . 35 144 . 95 5 12 6 13 94 4 2 . 17 22 12 155 205 AOE 12 | . . . . . . . . . . . . . . . . . . . . 1 . . . . . . . . . . . . 11 Critical Strikes 72 | . 1 . . . 4 2 . . . 2 . 4 . 3 . . 3 10 2 7 . . . . 5 . . . . 1 1 8 19 Actively Blocked 16 | . . . . . . . . . . . . . . . . . . . . . . . . . . . . . . . . 3 13 Damage Taken 26818 | . 373 64 . 7 1529 709 509 222 33 626 . 830 376 853 54 94 804 3112 280 1961 111 348 126 139 2333 81 49 . 517 450 229 3543 6456 Core 3331 | . 59 18 . 7 93 74 18 40 . 89 . 126 103 94 29 . 71 167 135 239 35 14 . 16 191 20 . . 50 26 16 269 1332 Absorbed by Shields 1321 | . . . . . . 64 . . . . . . . 272 52 . . . . . . . 84 78 42 . . . . . 117 392 220 Redirected to Shielding 245 | . . . . . . . . . . . . . . . . . . . . . . . . . . . . . 155 . . . 90 Ignored by Resistances 224 | . . . . . 44 90 14 . . . . . . . . . . . . 44 6 . 9 . 17 . . . . . . . . Regen/Repaired (Parts) 2024 | . . . . . . . 46 82 . . . . . . . . . . . . . . 233 . 1173 . . . . 318 . 172 . Core Remaining (%) 74 | 100 . . . 66 . . 66 . . . . 63 . . . . 65 . . . . . . 39 . . . . 77 98 98 . . Volleys Fired 885 | 20 35 3 . 3 86 73 61 17 8 . . . 33 9 12 9 16 57 2 26 6 21 11 6 89 3 5 . 16 46 32 90 90 Largest 4 | 2 2 1 . 1 2 2 2 2 1 . . . 2 1 2 2 2 4 1 2 1 4 3 3 3 3 3 . 3 3 4 4 4 Hottest 253 | 40 40 30 . 30 84 89 100 90 65 . . . 65 39 98 68 115 240 55 114 81 242 156 161 180 180 180 . 163 240 176 159 253 Shots Fired 1810 | 40 70 4 . 3 169 107 118 26 8 . . . 44 9 24 18 31 130 2 43 6 43 33 14 169 9 16 . 36 102 87 256 193 Gun 1433 | 40 70 1 . 1 169 97 101 16 . . . . 22 . 17 18 31 130 . 25 2 20 22 10 53 4 6 . 23 102 86 243 124 Cannon 312 | . . . . . . . 17 10 8 . . . 22 . 7 . . . . 15 1 23 11 3 112 5 10 . 8 . . . 60 Launcher 58 | . . 3 . 2 . 10 . . . . . . . 9 . . . . 2 3 3 . . 1 4 . . . 5 . 1 6 9 Special 7 | . . . . . . . . . . . . . . . . . . . . . . . . . . . . . . . . 7 . Kinetic 1256 | 40 70 1 . 1 89 43 57 16 . . . . 22 . 17 18 15 95 . 38 2 34 22 10 90 7 10 . 22 70 75 243 149 Thermal 467 | . . . . . 68 54 61 10 8 . . . 22 . 7 . 16 35 . . . 5 11 3 75 2 6 . 9 32 11 . 32 Explosive 58 | . . 3 . 2 . 10 . . . . . . . 9 . . . . 2 3 3 . . 1 4 . . . 5 . 1 6 9 Electromagnetic 19 | . . . . . 12 . . . . . . . . . . . . . . 2 1 4 . . . . . . . . . . . Entropic 3 | . . . . . . . . . . . . . . . . . . . . . . . . . . . . . . . . . 3 Robot Hit Streak 18 | 7 18 1 . . 16 9 12 7 . . . . 16 3 6 4 11 13 1 4 4 7 11 1 9 1 6 . 7 9 9 14 15 Robot Miss Streak 10 | 3 2 1 . 3 4 6 5 1 . . . . 2 4 2 3 1 5 . 4 . 1 2 4 5 4 1 . 2 4 10 4 6 Penetration Max 2 | . . . . . . 1 . . . . . . . . 1 . 1 1 . 1 . . 1 . 1 . . . 1 1 . 2 1 Secondary Targets 13 | . . . . . 2 . . . . . . . . . . . 1 2 . . . . . . . . . . . . 1 6 1 Max Gunslinging Chain 2 | . . . . . 1 . . . . . . . . . . . 1 1 . . . . . . . . . . . . 1 2 1 Shots Hit Robots 1204 | 25 60 2 . . 119 46 75 33 7 10 . . 38 40 16 12 23 76 1 62 8 18 21 4 78 4 12 7 21 59 47 164 116 Core Hits 574 | 12 25 4 . 3 40 36 29 9 2 2 . . 15 23 12 6 7 46 3 39 8 11 20 3 46 1 3 3 16 23 16 71 40 Critical Kills 24 | . . . . . 1 . . . . . . . . . 3 1 2 7 . 3 . . . . 1 . . . . 1 2 2 1 Critical Parts Destroyed 48 | 1 1 . . . 2 . . . . . . . . . 4 2 4 9 . 7 . . 1 . 1 . . . . 1 2 7 6 Critical Strikes 106 | 1 1 . . . 8 . 2 . . 2 . . 1 6 8 4 6 16 . 13 1 1 1 . 3 . 1 . . 2 4 9 16 Burn 7 | . . . . . 5 . 2 . . . . . . . . . . . . . . . . . . . . . . . . . . Meltdown 1 | . . . . . . . . . . . . . . . . . . . . . . . . . . . . . . . . . 1 Destroy 75 | 1 . . . . 2 . . . . . . . . . 8 4 6 16 . 10 . . 1 . 2 . . . . 2 4 9 10 Blast 5 | . . . . . . . . . . . . . . . . . . . . . . 1 . . . . 1 . . . . . 3 Smash 2 | . 1 . . . 1 . . . . . . . . . . . . . . . . . . . . . . . . . . . . Sever 10 | . . . . . . . . . . 2 . . 1 6 . . . . . . 1 . . . . . . . . . . . . Impale 4 | . . . . . . . . . . . . . . . . . . . . 3 . . . . 1 . . . . . . . . Sunder 2 | . . . . . . . . . . . . . . . . . . . . . . . . . . . . . . . . . 2 Melee Attacks 330 | . 8 . . . 8 . 12 27 8 17 . . 35 38 . . . . . 90 8 4 . . 18 2 1 7 1 18 6 22 . Impact 16 | . 8 . . . 8 . . . . . . . . . . . . . . . . . . . . . . . . . . . . Slashing 219 | . . . . . . . 12 27 8 17 . . 35 38 . . . . . 6 7 4 . . 8 2 1 7 1 18 6 22 . Piercing 95 | . . . . . . . . . . . . . . . . . . . . 84 1 . . . 10 . . . . . . . . Sneak Attacks 55 | . . . . . . . 1 10 5 . . . 1 7 . . . . . 9 3 2 . . 6 1 1 . . 4 2 3 . Combat Hostiles 3 | . . . . . . . . . . . . . . 2 . . . . . . . . . . . 1 . . . . . . . Follow-up Attacks 1 | . . . . . . . . . . . . . . . . . . . . . 1 . . . . . . . . . . . . Damage Inflicted 48415 | 196 648 209 . 89 2163 1833 1697 1640 696 524 . 18 1504 3329 346 206 563 3131 1448 2390 588 783 929 238 3967 235 416 834 1347 1839 2292 6528 5789 Guns 21659 | 196 458 . . . 2041 864 1247 267 . . . . 454 . 210 206 559 3130 . 130 25 291 565 91 827 . 78 . 425 1254 1335 5037 1969 Cannons 5702 | . . . . . . . 200 123 . . . . 108 . 136 . . . . 330 . 281 323 . 1612 142 224 . 150 . . . 2073 Explosions 9366 | . . 209 . 80 . 969 112 . . . . . . 954 . . . . 1448 443 215 . . 147 855 . . . 718 . 629 937 1650 Melee 11327 | . 173 . . . 103 . 106 1246 696 524 . . 942 2375 . . . . . 1427 348 211 . . 673 93 114 834 54 585 328 495 . Ramming 361 | . 17 . . 9 19 . 32 4 . . . 18 . . . . 4 1 . 60 . . 41 . . . . . . . . 59 97 Kinetic 20143 | 196 458 . . . 807 344 627 267 . . . . 454 . 210 206 336 2681 . 422 25 437 565 91 1622 96 157 . 425 914 1062 5037 2704 Thermal 6833 | . . . . . 1060 520 932 123 . . . . 108 . 136 . 223 449 . . . 121 323 . 858 46 145 . 150 340 273 . 1026 Explosive 9122 | . . 209 . 80 . 969 . . . . . . . 954 . . . . 1448 443 215 . . 147 723 . . . 718 . 629 937 1650 Electromagnetic 317 | . . . . . 174 . . . . . . . . . . . . . . 38 . 14 . . 91 . . . . . . . . Impact 276 | . 173 . . . 103 . . . . . . . . . . . . . . . . . . . . . . . . . . . . Slashing 9264 | . . . . . . . 106 1246 696 524 . . 942 2375 . . . . . 72 315 211 . . 274 93 114 834 54 585 328 495 . Piercing 1787 | . . . . . . . . . . . . . . . . . . . . 1355 33 . . . 399 . . . . . . . . Entropic 312 | . . . . . . . . . . . . . . . . . . . . . . . . . . . . . . . . . 312 Highest Corruption 32 | . 1 1 1 1 . . . 4 1 2 2 2 2 2 2 2 3 7 7 16 16 20 20 . 5 6 6 6 6 1 8 8 32 Average Corruption 4 | . 1 1 1 1 . . . 2 1 1 2 2 1 2 2 2 2 6 7 9 16 17 20 . 4 5 6 6 6 1 5 2 12 Corruption Purged 4 | . . . . . . . . 4 . . . . . . . . . . . . . . . . . . . . . . . . . Corruption Blocked . | . . . . . . . . . . . . . . . . . . . . . . . . . . . . . . . . . . Effects 379 | . 6 8 9 4 . . . 13 3 5 . 2 13 20 6 5 9 5 9 57 16 28 1 . 31 10 10 4 12 3 7 31 52 Message Errors 94 | . 2 3 3 . . . . 4 2 1 . 2 4 2 1 2 1 . 4 14 2 8 . . 11 1 2 . 2 1 2 7 13 Matter Fused 93 | . 2 1 1 1 . . . 2 . 1 . . 4 7 . . 3 3 . 17 5 13 . . 7 1 4 2 2 1 1 8 7 Heat Flow Errors 36 | . . 2 1 . . . . 3 1 . . . 1 4 . 1 2 . 3 6 1 2 . . 3 . 1 . 1 . . 2 2 Energy Discharges 42 | . . 1 2 1 . . . 2 . 1 . . . 3 2 . . . . 5 3 3 1 . 2 2 1 1 2 . 1 5 4 Parts Rejected 7 | . . . . . . . . . . 1 . . . . . . . 1 1 2 . . . . . . . . . . . 1 1 Parts Fused 7 | . 1 . . . . . . . . . . . . . 1 . . . . 2 1 . . . . . . . . . . 1 1 Data Loss (minor) 46 | . 1 . 1 1 . . . 1 . 1 . . 3 3 1 1 2 . . 4 2 . . . 5 3 . . 5 1 . 2 9 Data Loss (major) 13 | . . . . 1 . . . . . . . . 1 1 1 1 . . 1 1 . 1 . . 1 . . 1 . . . 1 2 Misfires 13 | . . 1 . . . . . . . . . . . . . . 1 . . 3 . . . . 2 1 1 . . . 3 1 . Alerts 10 | . . . 1 . . . . 1 . . . . . . . . . . . 2 2 . . . . 2 1 . . . . . 1 Misdirections 5 | . . . . . . . . . . . . . . . . . . . . . . . . . . . . . . . . . 5 Weapon Failures 13 | . . . . . . . . . . . . . . . . . . 1 . 1 . 1 . . . . . . . . . 3 7 Overload Shots 3 | . . . . . . . . . . . . . . . . . . 1 . . . . . . . . . . . 2 . . . Overflow Damage 3234 | . 77 . . . 21 . . 535 369 63 . . 121 271 . . . . . 191 65 48 . 35 204 21 103 168 95 52 199 74 522 Projectiles 276 | . . . . . . . . 20 . . . . . . . . . . . 16 . . . . 65 21 . . . . . . 154 Explosions 500 | . . . . . . . . . . . . . . 44 . . . . . 31 31 . . 35 . . . . 52 . 9 2 296 Melee 2458 | . 77 . . . 21 . . 515 369 63 . . 121 227 . . . . . 144 34 48 . . 139 . 103 168 43 52 190 72 72 Knockbacks 22 | . 2 . . . 1 . . . . . . . . . . . . . . 2 . 1 . . 3 2 . . . . . 1 10 Impact 5 | . 2 . . . 1 . . . . . . . . . . . . . . 1 . . . . . . . . . . . 1 . Kinetic 16 | . . . . . . . . . . . . . . . . . . . . . . 1 . . 3 2 . . . . . . 10 Secondary 1 | . . . . . . . . . . . . . . . . . . . . 1 . . . . . . . . . . . . . Self-Inflicted Damage 1100 | . . 23 . . . 79 107 . . . . 8 . 39 . . . . . 66 25 . 20 . 463 . . . 74 . . 29 167 Shots 18 | . . 1 . . . 2 1 . . . . . . 1 . . . . . 1 1 . . . 8 . . . 2 . . . 1 Rammed 34 | . 6 . . . 4 . . . . . . 2 . . . . . . . 16 . . 2 . . . . . . . . 3 1 Targets Rammed 41 | . 6 . . 1 5 . 2 1 . . . 2 . . . . 1 1 . 16 . . 2 . . . . . . . . 3 1 Kicked 5 | . . . . . . . 2 1 . . . . . . . . 1 1 . . . . . . . . . . . . . . . Crushed 2 | . . . . 1 1 . . . . . . . . . . . . . . . . . . . . . . . . . . . . Highest Temperature 523 | . 25 108 259 5 432 523 269 188 228 12 . 33 232 255 90 . 221 398 230 392 172 419 353 301 498 294 384 . 177 292 178 389 305 Average Temperature 107 | . 8 48 134 5 107 218 53 66 106 6 . 12 44 78 53 . 117 82 101 156 67 113 121 126 124 158 126 . 58 93 62 98 89 Received Heat Transfer 4410 | . 228 . . . 747 382 162 12 12 201 . 441 9 192 . 9 225 941 . 390 9 . 4 . 16 . 9 . 18 9 8 151 235 Effects 38 | . . . . . 7 6 . . . . . . . . . . . 2 . 2 . . 1 . 14 1 2 . . . . 3 . Shutdowns 14 | . . . . . . 3 . . . . . . . . . . . . . 1 . . 1 . 6 . 1 . . . . 2 . Energy Bleed 10 | . . . . . 5 1 . . . . . . . . . . . 1 . 1 . . . . . 1 1 . . . . . . Interference 10 | . . . . . 2 . . . . . . . . . . . . 1 . . . . . . 6 . . . . . . 1 . Matter Decay 2 | . . . . . . 1 . . . . . . . . . . . . . . . . . . 1 . . . . . . . . Short Circuit 1 | . . . . . . . . . . . . . . . . . . . . . . . . . 1 . . . . . . . . Damage (minor) 1 | . . . . . . 1 . . . . . . . . . . . . . . . . . . . . . . . . . . . Siege Activations . | . . . . . . . . . . . . . . . . . . . . . . . . . . . . . . . . . . Martial Activations . | . . . . . . . . . . . . . . . . . . . . . . . . . . . . . . . . . . Shielding Activations . | . . . . . . . . . . . . . . . . . . . . . . . . . . . . . . . . . . Robots Disrupted 3 | . . . . . . . . . . . . . . . . . . . . . . . 1 . 2 . . . . . . . . Combat Hostiles 2 | . . . . . . . . . . . . . . . . . . . . . . . 1 . 1 . . . . . . . . Robots Corrupted 1 | . 1 . . . . . . . . . . . . . . . . . . . . . . . . . . . . . . . . Combat Hostiles 1 | . 1 . . . . . . . . . . . . . . . . . . . . . . . . . . . . . . . . Parts Fried 3 | . 1 . . . . . . . . . . . . 1 . . . . . . . . . . . . . . . . 1 . . Impact Corruptions 6 | . 3 . . . 1 . . . . . . . . . . . . . . . . . . . . . . . . . . . 2 Robots Melted 1 | . . . . . . . . . . . . . . . . . . . . . . . . . . . . . . . . . 1 Combat Hostiles . | . . . . . . . . . . . . . . . . . . . . . . . . . . . . . . . . . . Parts Melted 13 | . . . . . 3 . 3 . . . . . 2 . . . . . . . . . . . . . . . . . . 2 3 Heat Transferred 8111 | . . . . . 2331 962 1641 148 . . . . 148 . 167 . 333 555 . . . 148 . . 50 . . . . 407 296 . 925 Parts Sabotaged 4 | . . . . . . . . . . . . . . . . . 4 . . . . . . . . . . . . . . . . Parts Stolen . | . . . . . . . . . . . . . . . . . . . . . . . . . . . . . . . . . . Parts Stripped . | . . . . . . . . . . . . . . . . . . . . . . . . . . . . . . . . . . Power Chain Reactions 1 | . . . . . . . . . . . . . . . . . . . . . . . . . 1 . . . . . . . . Alert | -11 -10 -10 -10 -9 -8 -8 -8 -7 -7 -7 -7 -6 -6 -6 -6 -6 -6 -5 -5 -5 -5 -5 -5 -4 -4 -4 -4 -4 -3 -3 -2 -1 -1 ------- Run | Yrd Mat Min Exi Min Mat Gar Mat Fac Low Low Dat Pro Fac Ext Cet Arc Hub Fac Was Fac Upp Upp War Pro Fac Upp Upp Zhi Pro Res Res Acc Com Maximum Alert Level 5 | . . . . . . 3 2 1 . . . . . 3 2 1 5 4 2 2 . . . . 2 . . . . . 1 4 4 Low Security (%) 56 | 100 100 100 . 100 100 14 . 96 . . . . 100 14 . 44 16 . . 22 . . . . 56 . . . . 100 83 58 . Level 1 18 | . . . . . . 31 46 3 . . . . . 26 70 55 1 . 48 61 . . . . 31 . . . . . 16 12 . Level 2 11 | . . . . . . 25 53 . . . . . . 37 29 . 6 . 51 16 . . . . 11 . . . . . . 7 3 Level 3 9 | . . . . . . 28 . . . . . . . 22 . . 13 57 . . . . . . . . . . . . . 8 93 Level 4 2 | . . . . . . . . . . . . . . . . . 35 42 . . . . . . . . . . . . . 13 3 Level 5 . | . . . . . . . . . . . . . . . . . 3 . . . . . . . . . . . . . . . . High Security . | . . . . . . . . . . . . . . . . . 22 . . . . . . . . . . . . . . . . Max Security . | . . . . . . . . . . . . . . . . . . . . . . . . . . . . . . . . . . Peak Influence 1689 | 10 77 79 . 88 95 1040 507 221 . . . . 166 770 480 233 1689 1438 496 498 . . . . 534 . . . . 83 258 1391 1119 Initial 1100 | . . 30 . . . 56 507 221 . . . . 69 72 400 114 63 1100 496 240 . . . . . . . . . 74 3 143 889 Average 277 | 1 15 8 . 26 35 505 399 44 . . . . 58 467 366 194 1088 1128 413 275 . . . . 187 . . . . 21 73 407 944 Influence Increases 14862 | 25 345 89 . 186 606 1024 466 268 25 130 . 195 466 1264 345 219 1917 726 18 831 110 110 284 99 1102 35 46 12 459 302 552 2074 532 Destroy 0b10 Robot/C 6160 | . 160 60 . 120 400 520 260 60 . 60 . . 180 560 160 80 680 320 . 260 80 80 200 80 380 20 40 . 320 40 160 720 160 Destroy 0b10 Robot/NC 530 | 25 5 . . 5 15 5 30 60 10 . . . 25 40 10 5 15 25 . 40 5 10 15 . 45 . . 10 . 50 15 40 25 Destroy Leader 1088 | . 52 10 . 20 102 20 92 36 . 10 . . 86 56 . . 150 60 . 42 10 20 . 10 74 . . . 30 24 32 122 30 Allied During Kill 1746 | . . . . 16 . 8 . . . . . . . 438 170 85 747 14 . . . . 54 9 . . 6 2 94 . . 103 . Trap Triggered on 0b10 20 | . . . . . . 10 . . . . . . 10 . . . . . . . . . . . . . . . . . . . . Successful Hack 571 | . 5 . . . 8 7 14 26 . . . . 80 28 . . . . . 92 . . . . 106 . . . . 40 78 87 . Select Force Hacks 110 | . 60 . . . . . . . . . . . . . . . 50 . . . . . . . . . . . . . . . . Disable Machine 480 | . . . . 15 . 30 15 15 . . . . 30 . . 45 75 15 . . . . . . 150 . . . . 15 15 60 . Anti-Garrison Action 550 | . . . . . . 250 . . . . . . . . . . 150 150 . . . . . . . . . . . . . . . Destroy Structure 1357 | . 3 19 . 10 6 69 40 11 . . . . 25 82 5 4 50 52 18 112 . . . . 302 . . . . 58 27 282 182 Partial Spotted 255 | . . . . . . 15 . 30 . . . . 15 15 . . . . . 30 . . . . 15 . . . . 30 30 75 . Lose Combat Pursuer 1995 | . 60 . . . 75 90 15 30 15 60 . 195 15 45 . . . 90 . 255 15 . 15 . 30 15 . . 15 45 195 585 135 Influence Decreases 14535 | 25 268 166 . 186 519 71 1019 663 117 120 10 85 427 697 774 323 430 1260 1092 694 349 341 151 243 570 348 265 12 348 406 320 922 1314 Entered New Map 4787 | . . 47 . . . 31 533 266 35 . 10 . 41 77 316 173 120 852 922 104 179 47 11 144 . 198 42 . . 37 4 96 502 Time Decay 7991 | 25 268 119 . 186 435 . 486 397 82 110 . 60 376 550 318 80 130 238 130 530 170 294 80 99 512 150 203 12 268 329 316 616 422 Lost Part 1069 | . . . . . 84 20 . . . 10 . 25 . 50 . 10 40 150 40 50 . . . . 50 . . . 20 20 . 150 350 Lost Ally 688 | . . . . . . 20 . . . . . . 10 20 140 60 140 20 . 10 . . 60 . 8 . 20 . 60 20 . 60 40 Squads Dispatched 93 | . 3 . . . 2 . 1 7 . . . . 10 1 . . 11 7 . 8 . . . . 9 . . . . 12 3 11 8 Investigation 26 | . 2 . . . . . . 2 . . . . 5 . . . 4 1 . 2 . . . . 1 . . . . 2 2 3 2 Extermination 25 | . . . . . . . . 4 . . . . 5 . . . . . . 3 . . . . 5 . . . . . . 5 3 Reinforcement 31 | . 1 . . . 1 . 1 1 . . . . . 1 . . 4 2 . 3 . . . . 3 . . . . 10 1 1 2 Assault 8 | . . . . . . . . . . . . . . . . . 2 3 . . . . . . . . . . . . . 2 1 Garrison 3 | . . . . . 1 . . . . . . . . . . . 1 1 . . . . . . . . . . . . . . . Intercept . | . . . . . . . . . . . . . . . . . . . . . . . . . . . . . . . . . . Searches Triggered . | . . . . . . . . . . . . . . . . . . . . . . . . . . . . . . . . . . Data Miner Redirects 4 | . . . . . . . . . . . . . . . . . . 1 . 1 . . . . 1 . . . . . . . 1 Construction Impeded 6 | . . . . . . . . . . . . . . . . . 1 1 . 2 . . . . 2 . . . . . . . . Haulers Reinforced 6 | . . . . . . . . 1 . . . . . . . . . . . . . . . . . . . . . 4 1 . . Active Scanning Responses . | . . . . . . . . . . . . . . . . . . . . . . . . . . . . . . . . . . Cargo Convoy Interrupts . | . . . . . . . . . . . . . . . . . . . . . . . . . . . . . . . . . . Stealth | -11 -10 -10 -10 -9 -8 -8 -8 -7 -7 -7 -7 -6 -6 -6 -6 -6 -6 -5 -5 -5 -5 -5 -5 -4 -4 -4 -4 -4 -3 -3 -2 -1 -1 --------- Run | Yrd Mat Min Exi Min Mat Gar Mat Fac Low Low Dat Pro Fac Ext Cet Arc Hub Fac Was Fac Upp Upp War Pro Fac Upp Upp Zhi Pro Res Res Acc Com Distress Signals 55 | . . . . . 6 . 3 1 . . . . 2 1 2 . 2 1 . 2 . . 1 . 3 . . . . 11 8 6 6 Communications Jammed 66 | . . . . . . . . . . . . . . . . . . . . . . . . . . . . . . 30 . 36 . Distress Signals 45 | . . . . . . . . . . . . . . . . . . . . . . . . . . . . . . 30 . 15 . Times Spotted 632 | . 22 3 . 3 32 19 26 8 1 13 . 16 19 30 7 7 29 34 6 50 7 5 43 4 32 1 2 . 16 17 42 99 39 Peak Tracking Total 15 | . 3 3 . 1 6 5 5 2 1 9 . 11 4 5 5 1 9 12 4 12 4 2 12 4 5 1 1 . 5 6 9 15 7 Tactical Retreats 69 | . 4 . . . 4 2 1 2 1 4 . 4 1 1 . . . 3 . 7 1 . 1 . 2 1 . . 1 3 7 14 5 Traps | -11 -10 -10 -10 -9 -8 -8 -8 -7 -7 -7 -7 -6 -6 -6 -6 -6 -6 -5 -5 -5 -5 -5 -5 -4 -4 -4 -4 -4 -3 -3 -2 -1 -1 ------- Run | Yrd Mat Min Exi Min Mat Gar Mat Fac Low Low Dat Pro Fac Ext Cet Arc Hub Fac Was Fac Upp Upp War Pro Fac Upp Upp Zhi Pro Res Res Acc Com Traps Triggered 28 | . 1 . . . . 7 . 3 . . . . . 5 . . . 1 . 1 . 2 1 . 2 . . . . 1 1 2 1 Indirectly . | . . . . . . . . . . . . . . . . . . . . . . . . . . . . . . . . . . Trap Hack Attempts . | . . . . . . . . . . . . . . . . . . . . . . . . . . . . . . . . . . Triggered . | . . . . . . . . . . . . . . . . . . . . . . . . . . . . . . . . . . Disarmed . | . . . . . . . . . . . . . . . . . . . . . . . . . . . . . . . . . . Reprogrammed . | . . . . . . . . . . . . . . . . . . . . . . . . . . . . . . . . . . Reused 1 | . . . . . . 1 . . . . . . . . . . . . . . . . . . . . . . . . . . . Traps Extracted . | . . . . . . . . . . . . . . . . . . . . . . . . . . . . . . . . . . Installed 2 | . . . . . . 2 . . . . . . . . . . . . . . . . . . . . . . . . . . . Triggered 2 | . . . . . . 1 . . . . . . 1 . . . . . . . . . . . . . . . . . . . . Most Traps Carried 1 | . . . . . . 1 . . . . . . . . . . . . . . . . . . . . . . . . . . . Machines | -11 -10 -10 -10 -9 -8 -8 -8 -7 -7 -7 -7 -6 -6 -6 -6 -6 -6 -5 -5 -5 -5 -5 -5 -4 -4 -4 -4 -4 -3 -3 -2 -1 -1 ---------- Run | Yrd Mat Min Exi Min Mat Gar Mat Fac Low Low Dat Pro Fac Ext Cet Arc Hub Fac Was Fac Upp Upp War Pro Fac Upp Upp Zhi Pro Res Res Acc Com Machines Disabled 40 | . . . . 1 . 5 1 1 . . . . 2 2 . 3 6 2 . . 1 . . . 10 . . . . 1 1 4 . Max in Single Turn 2 | . . . . . . 1 1 1 . . . . 1 2 . 1 1 1 . . 1 . . . 2 . . . . 1 1 1 . Garrison Access 10 | . . . . . . . . . . . . . 1 . . . 1 1 . 1 . . . . 3 . . . . . 1 2 . Garrison Relay 3 | . . . . . . 3 . . . . . . . . . . . . . . . . . . . . . . . . . . . Network Hub 1 | . . . . . . . . . . . . . . . . . 1 . . . . . . . . . . . . . . . . Machines Repaired . | . . . . . . . . . . . . . . . . . . . . . . . . . . . . . . . . . . Machines Dismantled . | . . . . . . . . . . . . . . . . . . . . . . . . . . . . . . . . . . Machines Sabotaged 1 | . . . . . . . . . . . . . . . . . 1 . . . . . . . . . . . . . . . . Overloaded Fab Kills . | . . . . . . . . . . . . . . . . . . . . . . . . . . . . . . . . . . Hacking | -11 -10 -10 -10 -9 -8 -8 -8 -7 -7 -7 -7 -6 -6 -6 -6 -6 -6 -5 -5 -5 -5 -5 -5 -4 -4 -4 -4 -4 -3 -3 -2 -1 -1 --------- Run | Yrd Mat Min Exi Min Mat Gar Mat Fac Low Low Dat Pro Fac Ext Cet Arc Hub Fac Was Fac Upp Upp War Pro Fac Upp Upp Zhi Pro Res Res Acc Com Machines Accessed 112 | . 3 . 2 . 5 2 8 10 1 . 4 . 16 4 . . 3 1 . 11 1 1 2 1 17 . 1 4 . 3 2 9 1 Terminals 52 | . 1 . . . 3 2 6 8 . . . . 10 4 . . 2 . . 6 1 . . 1 5 . . . . . 1 2 . Fabricators 7 | . . . . . . . . . . . . . 3 . . . . . . . . . . . 2 . . . . . 1 1 . Repair Stations 13 | . . . . . . . 1 1 . . . . . . . . . . . 2 . . . . 5 . . . . 2 . 2 . Recycling Units 5 | . 2 . . . 1 . . . . . . . . . . . . . . 1 . . . . . . . . . . . . 1 Scanalyzers 10 | . . . . . . . 1 1 . . . . 2 . . . . . . 1 . . . . 2 . . . . 1 . 2 . Garrison Access 10 | . . . . . 1 . . . . . . . 1 . . . 1 1 . 1 . . . . 3 . . . . . . 2 . Total Hacks 337 | . 6 . 2 . 9 4 15 18 1 . 32 . 48 9 . . 10 3 . 39 7 1 5 1 60 . 1 17 . 12 6 26 5 Successful 201 | . 3 . 2 . 6 1 11 7 1 . 32 . 26 5 . . 2 . . 12 7 1 5 1 38 . 1 17 . 7 5 9 2 Failed 134 | . 3 . . . 3 3 4 11 . . . . 21 4 . . 8 3 . 27 . . . . 22 . . . . 5 1 16 3 Catastrophic 29 | . . . . . 1 1 . . . . . . 4 . . . 2 2 . 8 . . . . 4 . . . . 2 1 4 . Database Lockouts 2 | . . . . . . . . . . . . . 1 . . . . . . . . . . . . . . . . . . 1 . Manual 57 | . 2 . 1 . 1 . 1 4 . . . . 16 1 1 . 2 . . 5 . . 1 . 15 . . . . 1 . 4 2 Terminals 142 | . 4 . . . 6 4 11 15 . . . . 30 9 . . 6 . . 21 7 . . 1 18 . . . . . 4 6 . Fabricators 23 | . . . . . . . . . . . . . 13 . . . . . . . . . . . 4 . . . . . 2 4 . Repair Stations 46 | . . . . . . . 2 2 . . . . . . . . . . . 8 . . . . 23 . . . . 7 . 4 . Recycling Units 13 | . 2 . . . 2 . . . . . . . . . . . . . . 4 . . . . . . . . . . . . 5 Scanalyzers 33 | . . . . . . . 2 1 . . . . 4 . . . . . . 5 . . . . 8 . . . . 5 . 8 . Garrison Access 21 | . . . . . 1 . . . . . . . 1 . . . 4 3 . 1 . . . . 7 . . . . . . 4 . Terminal Hacks 113 | . 1 . 2 . 4 1 7 4 1 . 32 . 8 5 . . 1 . . 4 7 1 5 1 7 . 1 17 . . 3 1 . Record 27 | . . . 1 . . . 1 . . . 11 . 1 . . . . . . . 7 . . 1 . . . 5 . . . . . Part Schematic 15 | . . . . . . . . . . . 11 . . . . . . . . . . . . . . . . 4 . . . . . Robot Schematic 7 | . . . . . . . . . . . 7 . . . . . . . . . . . . . . . . . . . . . . Robot Analysis 5 | . . . . . . . . . . . . . . 1 . . . . . . . . . . . . . 4 . . . . . Prototype ID Bank 14 | . . . . . 1 . . 1 . . 3 . . . . . . . . . . . 4 . 1 . . 4 . . . . . Open Door 5 | . . . . . . 1 . . 1 . . . . . . . . . . . . 1 1 . . . 1 . . . . . . Level Access Points 4 | . . . . . 1 . 1 . . . . . . . . . 1 . . . . . . . . . . . . . 1 . . Branch Access Points 6 | . . . . . . . . 1 . . . . 1 . . . . . . 1 . . . . 1 . . . . . 1 1 . Emergency Access Points 2 | . . . . . . . 1 1 . . . . . . . . . . . . . . . . . . . . . . . . . Terminal Index 4 | . . . . . 1 . . . . . . . 1 1 . . . . . 1 . . . . . . . . . . . . . Fabricator Index 1 | . . . . . . . . . . . . . . . . . . . . . . . . . 1 . . . . . . . . Repair Station Index 3 | . . . . . . . . . . . . . . 1 . . . . . 1 . . . . 1 . . . . . . . . Scanalyzer Index 1 | . . . . . . . . 1 . . . . . . . . . . . . . . . . . . . . . . . . . Alert Level 5 | . . . . . . . 2 . . . . . 1 1 . . . . . . . . . . 1 . . . . . . . . Locate Traps 3 | . . . . . 1 . 1 . . . . . . 1 . . . . . . . . . . . . . . . . . . . Maintenance Status 2 | . . . . . . . . . . . . . 1 . . . . . . . . . . . 1 . . . . . . . . Surveillance Status 1 | . . . . . . . . . . . . . . . . . . . . . . . . . 1 . . . . . . . . Recall Extermination 1 | . . . . . . . . . . . . . . . . . . . . 1 . . . . . . . . . . . . . Hauler Manifests 3 | . 1 . . . . . . . . . . . 1 . . . . . . . . . . . . . . . . . 1 . . Zone Layout 3 | . . . . . . . 1 . . . . . 2 . . . . . . . . . . . . . . . . . . . . Proto ID Catalog 1 | . . . 1 . . . . . . . . . . . . . . . . . . . . . . . . . . . . . . Fabricator Hacks 14 | . . . . . . . . . . . . . 8 . . . . . . . . . . . 3 . . . . . 2 1 . Network Status 3 | . . . . . . . . . . . . . 2 . . . . . . . . . . . . . . . . . . 1 . Load Schematic 7 | . . . . . . . . . . . . . 4 . . . . . . . . . . . 2 . . . . . 1 . . Build 4 | . . . . . . . . . . . . . 2 . . . . . . . . . . . 1 . . . . . 1 . . Repair Station Hacks 26 | . . . . . . . 2 2 . . . . . . . . . . . 1 . . . . 16 . . . . 4 . 1 . Scan Component 15 | . . . . . . . 1 1 . . . . . . . . . . . 1 . . . . 9 . . . . 2 . 1 . Repair 11 | . . . . . . . 1 1 . . . . . . . . . . . . . . . . 7 . . . . 2 . . . Recycling Unit Hacks 4 | . . . . . 1 . . . . . . . . . . . . . . 1 . . . . . . . . . . . . 2 Retrieve Matter 2 | . . . . . . . . . . . . . . . . . . . . 1 . . . . . . . . . . . . 1 Retrieve Components 2 | . . . . . 1 . . . . . . . . . . . . . . . . . . . . . . . . . . . 1 Scanalyzer 17 | . . . . . . . 2 1 . . . . 3 . . . . . . 2 . . . . 5 . . . . 2 . 2 . Insert Component 4 | . . . . . . . 1 . . . . . 1 . . . . . . . . . . . 2 . . . . . . . . Analyze 3 | . . . . . . . . . . . . . 1 . . . . . . . . . . . 2 . . . . . . . . Retrieve Study 10 | . . . . . . . 1 1 . . . . 1 . . . . . . 2 . . . . 1 . . . . 2 . 2 . Garrison Access Hacks 8 | . . . . . 1 . . . . . . . 1 . . . . . . 1 . . . . 3 . . . . . . 2 . Unlock Access 1 | . . . . . 1 . . . . . . . . . . . . . . . . . . . . . . . . . . . . Seal Access 7 | . . . . . . . . . . . . . 1 . . . . . . 1 . . . . 3 . . . . . . 2 . Unauthorized Hacks 19 | . 2 . . . . . . . . . . . 6 . . . 1 . . 3 . . . . 4 . . . . 1 . 2 . Terminals 12 | . . . . . . . . . . . . . 4 . . . 1 . . 3 . . . . 3 . . . . . . 1 . Assimilate 5 | . . . . . . . . . . . . . 2 . . . . . . 2 . . . . 1 . . . . . . . . Botnet 6 | . . . . . . . . . . . . . 2 . . . . . . 1 . . . . 2 . . . . . . 1 . Sabotage 1 | . . . . . . . . . . . . . . . . . 1 . . . . . . . . . . . . . . . . Fabricators 3 | . . . . . . . . . . . . . 2 . . . . . . . . . . . 1 . . . . . . . . Recompile 3 | . . . . . . . . . . . . . 2 . . . . . . . . . . . 1 . . . . . . . . Repair Stations 2 | . . . . . . . . . . . . . . . . . . . . . . . . . . . . . . 1 . 1 . Patch 2 | . . . . . . . . . . . . . . . . . . . . . . . . . . . . . . 1 . 1 . Recycling Units 2 | . 2 . . . . . . . . . . . . . . . . . . . . . . . . . . . . . . . . Tunnel 2 | . 2 . . . . . . . . . . . . . . . . . . . . . . . . . . . . . . . . Scanalyzers . | . . . . . . . . . . . . . . . . . . . . . . . . . . . . . . . . . . Garrison Access . | . . . . . . . . . . . . . . . . . . . . . . . . . . . . . . . . . . Data Cores Recovered 1 | . . . . . . . . . . . . . 1 . . . . . . . . . . . . . . . . . . . . Used 1 | . . . . . . . . . . . . . 1 . . . . . . . . . . . . . . . . . . . . Hacking Detections 66 | . 1 . . . 3 2 6 5 . . . . 13 1 1 . 3 1 . 9 . . . . 9 . . . . 2 2 7 1 Full Trace Events 14 | . . . . . . . . 1 . . . . 3 . . . 2 1 . 2 . . . . . . . . . 1 2 2 . Feedback Events 1 | . . . . . . . . . . . . . . . . . 1 . . . . . . . . . . . . . . . . Corruption 1 | . . . . . . . . . . . . . . . . . 1 . . . . . . . . . . . . . . . . Feedback Blocked . | . . . . . . . . . . . . . . . . . . . . . . . . . . . . . . . . . . Robot Schematics Acquired 7 | . . . . . . . . . . . 7 . . . . . . . . . . . . . . . . . . . . . . Robots Built . | . . . . . . . . . . . . . . . . . . . . . . . . . . . . . . . . . . Authchips . | . . . . . . . . . . . . . . . . . . . . . . . . . . . . . . . . . . Time . | . . . . . . . . . . . . . . . . . . . . . . . . . . . . . . . . . . Total Robot Build Rating . | . . . . . . . . . . . . . . . . . . . . . . . . . . . . . . . . . . Part Schematics Acquired 18 | . . . . . . . . . . . 11 . 1 . . . . . . . . . . . 2 . . 4 . . . . . Parts Built 4 | . . . . . . . . . . . . . 2 . . . . . . . . . . . 1 . . . . . 1 . . Authchips 3 | . . . . . . . . . . . . . 2 . . . . . . . . . . . 1 . . . . . . . . Time 380 | . . . . . . . . . . . . . 228 . . . . . . . . . . . 68 . . . . . 84 . . Total Part Build Rating 24 | . . . . . . . . . . . . . 10 . . . . . . . . . . . 8 . . . . . 6 . . Part Studies Acquired 10 | . . . . . . . 1 1 . . . . 1 . . . . . . 2 . . . . 1 . . . . 2 . 2 . Parts Repaired 11 | . . . . . . . 1 1 . . . . . . . . . . . . . . . . 7 . . . . 2 . . . Time 561 | . . . . . . . 50 44 . . . . . . . . . . . . . . . . 361 . . . . 106 . . . Parts Recycled . | . . . . . . . . . . . . . . . . . . . . . . . . . . . . . . . . . . Recycled Matter . | . . . . . . . . . . . . . . . . . . . . . . . . . . . . . . . . . . Retrieved Matter . | . . . . . . . . . . . . . . . . . . . . . . . . . . . . . . . . . . Retrieved Components 3 | . . . . . 2 . . . . . . . . . . . . . . . . . . . . . . . . . . . 1 Parts Scanalyzed 3 | . . . . . . . . . . . . . 1 . . . . . . . . . . . 2 . . . . . . . . Part Schematics Acquired 3 | . . . . . . . . . . . . . 1 . . . . . . . . . . . 2 . . . . . . . . Parts Damaged 1 | . . . . . . . . . . . . . . . . . . . . . . . . . 1 . . . . . . . . Bothacking | -11 -10 -10 -10 -9 -8 -8 -8 -7 -7 -7 -7 -6 -6 -6 -6 -6 -6 -5 -5 -5 -5 -5 -5 -4 -4 -4 -4 -4 -3 -3 -2 -1 -1 ------------ Run | Yrd Mat Min Exi Min Mat Gar Mat Fac Low Low Dat Pro Fac Ext Cet Arc Hub Fac Was Fac Upp Upp War Pro Fac Upp Upp Zhi Pro Res Res Acc Com Used RIF Installer . | . . . . . . . . . . . . . . . . . . . . . . . . . . . . . . . . . . Robots Hacked 1 | . . . . . . . . . . . . . . . . . . . . . . . . . . . . . . . . 1 . Non-combat . | . . . . . . . . . . . . . . . . . . . . . . . . . . . . . . . . . . Combat . | . . . . . . . . . . . . . . . . . . . . . . . . . . . . . . . . . . Robot Hacks Applied . | . . . . . . . . . . . . . . . . . . . . . . . . . . . . . . . . . . Manual 1 | . . . . . . . . . . . . . . . . . . . . . . . . . . . . . . . . 1 . Relay Couplers Released 18 | . . . . . . 13 . . . . . . . . . . 2 1 . . . . . . . . . . . . 2 . . Machine Destruction 18 | . . . . . . 13 . . . . . . . . . . 2 1 . . . . . . . . . . . . 2 . . Fabnet Peak Effective % . | . . . . . . . . . . . . . . . . . . . . . . . . . . . . . . . . . . Robots Rewired 27 | . . . . . . . . . . . . . . 16 . . . . . . . . 6 . . 2 2 . 1 . . . . Allies Hacked 2 | . . . . . . . . . . . . . . . . . . . . . . . 1 . 1 . . . . . . . . Hacks Repelled . | . . . . . . . . . . . . . . . . . . . . . . . . . . . . . . . . . . Allies | -11 -10 -10 -10 -9 -8 -8 -8 -7 -7 -7 -7 -6 -6 -6 -6 -6 -6 -5 -5 -5 -5 -5 -5 -4 -4 -4 -4 -4 -3 -3 -2 -1 -1 -------- Run | Yrd Mat Min Exi Min Mat Gar Mat Fac Low Low Dat Pro Fac Ext Cet Arc Hub Fac Was Fac Upp Upp War Pro Fac Upp Upp Zhi Pro Res Res Acc Com Total Allies 51 | . . . . 2 . 2 . . . . . . 1 27 5 . . . . 1 . . 6 . 1 2 2 . 1 . . 1 . Largest Group 24 | . . . . 2 2 2 . . . . . . 1 24 24 22 18 1 . 1 . . 6 2 2 2 3 3 4 1 . 1 . Highest-Rated Group 1187 | . . . . 46 46 56 . . . . . . 26 847 1187 1129 886 96 . 26 . . 346 105 105 98 145 145 192 49 . 219 . Highest-Rated Ally 219 | . . . . 31 31 31 . . . . . . 26 159 159 159 96 96 . 26 . . 90 64 64 49 49 49 49 49 . 219 . Initial Warlord ECA Mod 5 | . . . . . . . 5 4 4 4 4 3 3 3 3 3 3 2 2 2 . . . . . . . . . . . . . Warlord Squad Rendezvous 2 | . . . . . . . . . . . . . . . . . . . . 2 . . . . . . . . . . . . . Infantry 1 | . . . . . . . . . . . . . . . . . . . . 1 . . . . . . . . . . . . . Muscle 1 | . . . . . . . . . . . . . . . . . . . . 1 . . . . . . . . . . . . . Total Orders 20 | . . . . . . . . . . . . . 2 . . . . . . . . . . . 1 . 2 . . 4 . 3 8 STAY 4 | . . . . . . . . . . . . . 1 . . . . . . . . . . . 1 . 1 . . 1 . . . FOLLOW 2 | . . . . . . . . . . . . . 1 . . . . . . . . . . . . . 1 . . . . . . EXPLORE 7 | . . . . . . . . . . . . . . . . . . . . . . . . . . . . . . . . 1 6 RETURN 7 | . . . . . . . . . . . . . . . . . . . . . . . . . . . . . . 3 . 2 2 Ally Attacks 538 | . . . . 11 . 9 . . . . . . . 132 48 32 156 5 . . . . 49 3 . . 7 . 29 5 . 52 . Total Damage 16946 | . . . . 108 . 179 . . . . . . . 3243 1142 856 5355 141 . . . . 2225 52 . . 259 . 934 116 . 2336 . Kills 110 | . . . . 3 . 3 . . . . . . . 22 5 4 43 1 . . . . 11 . . . 1 . 5 1 . 11 . Allies Corrupted 2 | . . . . . . . . . . . . . . . . . 1 . . . . . 1 . . . . . . . . . . Allies Melted 2 | . . . . . . . . . . . . . . . . . . . . 1 . . . . . . . . . . 1 . . Intel | -11 -10 -10 -10 -9 -8 -8 -8 -7 -7 -7 -7 -6 -6 -6 -6 -6 -6 -5 -5 -5 -5 -5 -5 -4 -4 -4 -4 -4 -3 -3 -2 -1 -1 ------- Run | Yrd Mat Min Exi Min Mat Gar Mat Fac Low Low Dat Pro Fac Ext Cet Arc Hub Fac Was Fac Upp Upp War Pro Fac Upp Upp Zhi Pro Res Res Acc Com Active Infowar (turns) 16144 | 45 1119 963 718 618 715 . . 1043 262 . . 141 . . . . 77 424 . 1 323 659 935 491 832 297 466 205 600 1059 1069 2047 1035 Optics 5645 | . . . . . . . . . . . . . . . . . 77 424 . . . . . . . . . . . 993 1069 2047 1035 Sensors 1446 | . . . . . . . . 1043 262 . . 141 . . . . . . . . . . . . . . . . . . . . . Seismic 8704 | 45 1119 963 718 618 715 . . . . . . . . . . . . . . . 323 659 935 491 494 297 466 205 598 58 . . . Jamming 3288 | . . . . . . . . . . . . . . . . . . . . 1 . . . . 338 166 146 3 452 455 2 1725 . Robot Analysis Total 5 | . . . . . . . . . . . . . . 1 . . . . . . . . . . . . . 4 . . . . . Derelict Logs Recovered 11 | . . 1 . 2 . . . . 1 . . 1 . . . . . . . . 3 2 . 1 . . . . . . . . . Drone Launches 16 | . . . . . . . . . . . . . . . . . . . . . . . . . . . . . . 3 . 6 7 Drone Recoveries 9 | . . . . . . . . . . . . . . . . . . . . . . . . . . . . . . 3 . 3 3 Exploration | -11 -10 -10 -10 -9 -8 -8 -8 -7 -7 -7 -7 -6 -6 -6 -6 -6 -6 -5 -5 -5 -5 -5 -5 -4 -4 -4 -4 -4 -3 -3 -2 -1 -1 ------------- Run | Yrd Mat Min Exi Min Mat Gar Mat Fac Low Low Dat Pro Fac Ext Cet Arc Hub Fac Was Fac Upp Upp War Pro Fac Upp Upp Zhi Pro Res Res Acc Com Turns Passed 28845 | 176 1136 963 718 618 1530 1622 1273 1626 302 256 32 191 1756 1588 719 178 360 515 272 1483 343 659 952 491 2294 311 466 205 600 1059 1069 2047 1035 Spaces Moved 28531 | 73 569 596 443 365 600 1003 548 2101 555 457 81 323 1864 1217 316 61 210 278 368 1708 584 659 1146 532 1966 608 718 353 557 1507 2131 2663 1371 Core 350 | 2 . . . . . . . . . . . . . . . . . . 319 29 . . . . . . . . . . . . . Treads 2644 | 71 569 596 443 365 584 . . . . . . . . . . . . . . . . . . . . . . . . . . . 16 Legs 2911 | . . . . . 16 1003 548 525 . . . . . 161 221 . 110 278 49 . . . . . . . . . . . . . . Wheels . | . . . . . . . . . . . . . . . . . . . . . . . . . . . . . . . . . . Hover 22626 | . . . . . . . . 1576 555 457 81 323 1864 1056 95 61 100 . . 1679 584 659 1146 532 1966 608 718 353 557 1507 2131 2663 1355 Flight . | . . . . . . . . . . . . . . . . . . . . . . . . . . . . . . . . . . Fastest Speed 22 | 50 160 160 160 160 130 130 130 40 40 35 40 35 36 27 100 100 102 103 50 43 52 52 48 48 36 36 36 36 36 22 28 28 33 Average Speed 64 | 156 160 160 160 160 159 130 130 63 44 40 40 57 59 51 114 101 135 110 70 57 52 52 57 48 40 36 36 36 36 33 37 40 51 Slowest Speed 310 | 160 160 160 160 160 240 130 130 130 100 105 40 105 156 260 226 102 310 185 250 110 52 102 106 48 103 36 36 36 92 97 91 93 232 Overloaded Moves 301 | . . . . . . . . . . 29 . 163 . 2 . . . . . . . . . . . . . . . 24 35 30 18 Propulsion Burnouts . | . . . . . . . . . . . . . . . . . . . . . . . . . . . . . . . . . . Robots Hopped . | . . . . . . . . . . . . . . . . . . . . . . . . . . . . . . . . . . Potential Cave-ins 2 | . . . . . . . . . . . . . . . . . . . . . . . . . . . . . . . 2 . . Cave-ins Triggered . | . . . . . . . . . . . . . . . . . . . . . . . . . . . . . . . . . . Exploration Rate (%) 58 | 5 91 97 52 80 43 71 56 52 71 69 69 47 42 81 58 70 28 10 80 24 70 62 89 63 41 67 83 60 71 38 48 59 36 Regions Visited 33 Branch Regions 20 Pre-discovered Areas 10 | . 2 . 1 1 . . . . 1 . 1 . . . . . . . . . . 1 . . . . . 3 . . . . . Known Exits Taken 17 | . . . . . 1 . 1 1 1 1 1 1 1 . . . 1 . . 1 1 . . 1 1 . . . 1 1 1 1 . Unknown Exits Taken 13 | 1 1 1 1 1 . . . . . . . . . 1 1 1 . . . . . 1 1 . . 1 1 1 . . . . . Scrap Searched 17 | . . 1 . 2 . . . . 4 . . . . . . . . . . . 1 1 . . . 3 2 . 3 . . . . Spaces Dug 225 | . 3 . . . 2 13 11 10 3 . . . 23 . . . . 3 . 14 15 1 . . 45 . . . . 12 3 41 26 Terrain Destroyed 991 | . 3 23 . 10 2 75 39 12 5 . . . 24 133 1 2 9 26 17 60 52 14 2 15 170 2 7 . 89 29 26 79 65 Melee 97 | . 3 . . . 2 . 9 10 1 . . . 19 . . . . . . 14 1 1 . . 8 . . . . 11 3 15 . Projectile 260 | . . . . . . 5 7 2 4 . . . 5 . 1 2 9 26 . 10 . 13 2 4 80 2 7 . 15 18 20 6 22 AOE 626 | . . 23 . 10 . 70 23 . . . . . . 133 . . . . 17 36 51 . . 10 82 . . . 74 . 2 53 42 Terrain Rammed . | . . . . . . . . . . . . . . . . . . . . . . . . . . . . . . . . . . Walls Destroyed . | . . . . . . . . . . . . . . . . . . . . . . . . . . . . . . . . . . Machines Disabled . | . . . . . . . . . . . . . . . . . . . . . . . . . . . . . . . . . . Actions | -11 -10 -10 -10 -9 -8 -8 -8 -7 -7 -7 -7 -6 -6 -6 -6 -6 -6 -5 -5 -5 -5 -5 -5 -4 -4 -4 -4 -4 -3 -3 -2 -1 -1 --------- Run | Yrd Mat Min Exi Min Mat Gar Mat Fac Low Low Dat Pro Fac Ext Cet Arc Hub Fac Was Fac Upp Upp War Pro Fac Upp Upp Zhi Pro Res Res Acc Com Total 36984 | 99 727 602 455 395 1019 1225 1014 2323 592 492 80 329 2389 2098 652 158 252 411 378 2022 604 932 1416 753 3277 689 912 421 920 1956 2341 3452 1599 Wait 5832 | . 72 . . 23 233 120 357 121 4 11 . . 403 616 296 88 2 50 1 118 . 233 108 214 1108 68 154 37 315 299 104 614 63 Move 28500 | 72 568 595 442 364 599 1001 547 2100 554 456 80 322 1863 1216 315 60 210 278 367 1707 583 658 1146 531 1965 607 717 352 556 1506 2130 2662 1371 Hop . | . . . . . . . . . . . . . . . . . . . . . . . . . . . . . . . . . . Pick Up 216 | . 19 1 3 1 19 4 8 13 4 1 . . 8 14 5 . 4 3 . 7 2 4 10 . 26 . 3 5 2 19 12 12 7 Fast Attach 180 | 7 . . 2 . 6 1 2 3 2 2 . . 16 4 2 . 10 5 5 22 2 . 13 . 14 . 1 5 2 14 10 8 22 Attach 115 | . 1 . . . 8 1 . 3 2 1 . 1 10 10 2 . 1 8 . 8 . . 7 . 8 . 1 3 1 4 3 14 18 Detach 66 | . 1 . . . . . . 4 3 . . 4 10 2 2 . 1 4 1 11 . . 6 . . . 1 . 1 3 1 5 6 Swap 240 | . 9 2 . 2 31 11 15 17 1 2 . . 3 7 8 1 4 1 . 2 3 6 11 2 23 4 3 3 9 17 22 15 6 Drop 274 | . 8 1 8 1 24 5 10 17 6 2 . . 8 16 10 . 3 4 2 5 1 6 22 . 26 2 5 9 4 30 21 3 15 Fire 885 | 20 35 3 . 3 86 73 61 17 8 . . . 33 9 12 9 16 57 2 26 6 21 11 6 89 3 5 . 16 46 32 90 90 Melee 326 | . 8 . . . 8 . 12 27 8 17 . . 35 38 . . . . . 87 7 4 . . 18 2 1 7 1 18 6 22 . Ram 23 | . . . . . . . . . . . . 2 . . . . . . . 16 . . 1 . . . . . . . . 3 1 Kick 4 | . . . . . . . 2 1 . . . . . . . . . 1 . . . . . . . . . . . . . . . Crush 12 | . 6 . . 1 5 . . . . . . . . . . . . . . . . . . . . . . . . . . . . Escape Stasis 51 | . . . . . . 7 . . . . . . . 31 . . . . . 13 . . . . . . . . . . . . . Rewire 258 | . . . . . . . . . . . . . . 135 . . 1 . . . . . 81 . . 3 21 . 13 . . 4 . Trap 2 | . . . . . . 2 . . . . . . . . . . . . . . . . . . . . . . . . . . . Miscellaneous . | . . . . . . . . . . . . . . . . . . . . . . . . . . . . . . . . . . Route ------- -11/Scrapyard -10/Materials (discovered 4 exits: [*Mat x2] / [*Min x2]) -10/Mines (discovered 4 exits: [*Mat x2] / *Exi / [*Sub]) -10/Exiles -9/Mines -8/Materials (discovered 5 exits: Fac x3 / [*Sto] / Gar) -8/Garrison (discovered 3 exits: *Mat x3) -8/Materials (discovered 4 exits: *Fac x3 / [*Sto]) -7/Factory (discovered 4 exits: *Fac x2 / *Low x2) -7/Lower Caves -7/Lower Caves (discovered 2 exits: *Fac / *Dat) -7/Data Miner -6/Proximity Caves -6/Factory (discovered 4 exits: *Low x2 / *Ext x2) -6/Extension (discovered 2 exits: *Fac / *Cet) -6/Cetus (discovered 2 exits: *Fac / [*Arc]) -6/Archives -6/Hub_04(d) (discovered 4 exits: *Fac x4) -5/Factory -5/Waste -5/Factory (discovered 3 exits: *Fac / *Upp x2) -5/Upper Caves -5/Upper Caves (discovered 2 exits: *Fac / *War) -5/Warlord -4/Proximity Caves -4/Factory (discovered 5 exits: Res x3 / *Upp x2) -4/Upper Caves -4/Upper Caves (discovered 2 exits: *Res / *Zhi) -4/Zhirov -3/Proximity Caves -3/Research (discovered 5 exits: *Res x2 / *Arm / *Qua x2) -2/Research (discovered 5 exits: *Acc x3 / *Tes x2) -1/Access -1/Command History --------- Turn | Location | Event 12 | -11/Scrapyard | Discovered new exit (range 16) 177 | -11/Scrapyard | Entered Materials 311 | -10/Materials | Build established: Mutant 665 | -10/Materials | Discovered new exit (range 5) 862 | -10/Materials | Discovered new exit (range 16) 908 | -10/Materials | Discovered new exit (range 11) 1276 | -10/Materials | Discovered new exit (range 11) 1313 | -10/Materials | Entered Mines 1410 | -10/Mines | Assembled infested the area 1625 | -10/Mines | Discovered new exit (range 6) 1642 | -10/Mines | Discovered new exit (range 16) 1849 | -10/Mines | Discovered new exit (range 15) 2097 | -10/Mines | Learned Materials stockpile data 2270 | -10/Mines | Deemed a non-threat by the Exiles lab entrance 2270 | -10/Mines | Discovered new exit (range 5) 2276 | -10/Mines | Entered Exiles 2300 | -10/Exiles | Discovered new exit (range 15) 2316 | -10/Exiles | Met 8R-AWN 2342 | -10/Exiles | Met EX-HEX 2404 | -10/Exiles | Met EX-DEC 2412 | -10/Exiles | Learned location of Zion (-6) 2440 | -10/Exiles | Met EX-BIN 2764 | -10/Exiles | Aligned with FarCom system 2765 | -10/Exiles | Given EX-Vault access code 2809 | -10/Exiles | Opened EX-Vault 2827 | -10/Exiles | Found XL Autogun Array 2864 | -10/Exiles | Warned to stay clear of 0b10 Research branches 2994 | -10/Exiles | Left Exiles lab with XL Autogun Array 2994 | -10/Exiles | Entered Mines 3005 | -9/Mines | Discovered new exit (range 16) 3201 | -9/Mines | Learned location of Recycling (-8) 3240 | -9/Mines | Learned 2 Materials zone layouts 3612 | -9/Mines | Entered Materials 3612 | -8/Materials | Accompanied by 2 allies 3612 | -8/Materials | Evolved 4 slots: Propulsion x2, Utility x2 3617 | -8/Materials | Led the pair of lost Derelicts to an unsafe place 4171 | -8/Materials | Lost 3 parts (1n1u1w) 4227 | -8/Materials | Discovered new exit (range 5) 4421 | -8/Materials | Lost 4 parts (1p1n1u1w) 5023 | -8/Materials | Identified exit to Garrison 5036 | -8/Materials | Identified exit to Factory 5077 | -8/Materials | Garrison activated, responded to threat 5084 | -8/Materials | Build established: Scavenger-Mutant 5142 | -8/Materials | Entered Garrison 5180 | -8/Garrison | Triggered checkpoint 5274 | -8/Garrison | Garrison Relay disabled 5360 | -8/Garrison | Triggered checkpoint 5415 | -8/Garrison | Build established: Mutant 5536 | -8/Garrison | Triggered checkpoint 5774 | -8/Garrison | Discovered new exit (range 15) 5887 | -8/Garrison | Rescued a captive Derelict 5892 | -8/Garrison | Rescued a captive Derelict 5905 | -8/Garrison | Triggered checkpoint 5936 | -8/Garrison | Garrison Relay disabled 6051 | -8/Garrison | Triggered checkpoint 6251 | -8/Garrison | Discovered new exit (range 8) 6289 | -8/Garrison | Triggered checkpoint 6308 | -8/Garrison | Garrison Relay disabled 6474 | -8/Garrison | Discovered new exit (range 11) 6583 | -8/Garrison | Attempted to access garrison exit controls, blocked by remote lockdown 6764 | -8/Garrison | Entered Materials 7586 | -8/Materials | Repaired Lgt. Angular Momentum Engine 8009 | -8/Materials | Discovered new exit (range 10) 8037 | -8/Materials | Entered Factory 8037 | -7/Factory | Evolved 2 slots: Propulsion x1, Utility x1 8689 | -7/Factory | Build established: Skirmisher 8927 | -7/Factory | Identified exit to Lower Caves 8988 | -7/Factory | Discovered new exit (range 10) 9000 | -7/Factory | Identified exit to Factory 9017 | -7/Factory | Discovered exit to Factory (range 9) 9124 | -7/Factory | Build established: Scout 9249 | -7/Factory | Repaired Gauss Rifle 9663 | -7/Factory | Entered Lower Caves 9669 | -7/Lower Caves | Met a Warlord Commander 9670 | -7/Lower Caves | Learned location of Warlord (-5) 9671 | -7/Lower Caves | Warlord Commander delivered Encrypted Comm Array 9676 | -7/Lower Caves | Found Encrypted Comm Array 9710 | -7/Lower Caves | Learned 4 Factory zone layouts 9722 | -7/Lower Caves | Build established: Mutant 9779 | -7/Lower Caves | Spotted B-75 Beast 9847 | -7/Lower Caves | Discovered new exit (range 8) 9850 | -7/Lower Caves | Identified exit to Lower Caves 9926 | -7/Lower Caves | Found Prototype Device 9926 | -7/Lower Caves | Identified Heart of Steel 9965 | -7/Lower Caves | Entered another Lower Caves area 10041 | -7/Lower Caves | Discovered exit to Factory (range 5) 10047 | -7/Lower Caves | Spotted B-75 Beast 10177 | -7/Lower Caves | Encountered a Warlord checkpoint 10216 | -7/Lower Caves | Discovered new exit (range 14) 10220 | -7/Lower Caves | Attracted the attention of an 0b10 outpost 10220 | -7/Lower Caves | Identified exit to Data Miner 10221 | -7/Lower Caves | Entered Data Miner 10221 | -7/Data Miner | Discovered new exit (range 6) 10229 | -7/Data Miner | Met Data Miner 10237 | -7/Data Miner | Learned location of Section 7 (-2) 10237 | -7/Data Miner | Acquired the access code to Warlord's prototype stash 10244 | -7/Data Miner | Received God Mode back door access code from Data Miner 10253 | -7/Data Miner | Identified exit to Proximity Caves 10253 | -7/Data Miner | Entered Proximity Caves 10330 | -6/Proximity Caves | Attracted the attention of an 0b10 checkpoint 10436 | -6/Proximity Caves | Learned Factory trap positions 10440 | -6/Proximity Caves | Discovered exit to Factory (range 15) 10444 | -6/Proximity Caves | Entered Factory 10444 | -6/Factory | Evolved 2 slots: Propulsion x1, Utility x1 10446 | -6/Factory | Loaded intel: 108 trap records 10543 | -6/Factory | Discovered new exit (range 8) 10566 | -6/Factory | Identified exit to Lower Caves 10749 | -6/Factory | Build established: Hacker-Mutant 10904 | -6/Factory | Fabricated Cld. Aerolev Unit (x1) 10966 | -6/Factory | Identified exit to Extension 11512 | -6/Factory | Central database locked down 11638 | -6/Factory | Build established: Hacker-Gladiator 11826 | -6/Factory | Fabricated Cld. Aerolev Unit (x1) 11845 | -6/Factory | Allied Derelicts emerged from ambush trap array 12200 | -6/Factory | Entered Extension 12319 | -6/Extension | Rescued a captive Derelict 12332 | -6/Extension | Rescued a captive Derelict 12379 | -6/Extension | Rescued A7 12455 | -6/Extension | Rescued a captive Derelict 12917 | -6/Extension | Build established: Commander-Gladiator 13006 | -6/Extension | Spotted B-75 Beast 13016 | -6/Extension | Spotted B-75 Beast 13029 | -6/Extension | Allies destroyed B-75 Beast 13038 | -6/Extension | Destroyed B-75 Beast 13095 | -6/Extension | Rescued a captive Derelict 13200 | -6/Extension | Rescued a captive Derelict 13301 | -6/Extension | Rescued a captive Derelict 13301 | -6/Extension | Rescued a captive Derelict 13318 | -6/Extension | Lost 3 allies 13408 | -6/Extension | Rescued a captive Derelict 13409 | -6/Extension | Rescued a captive Derelict 13472 | -6/Extension | Rescued a captive Derelict 13490 | -6/Extension | Discovered new exit (range 10) 13491 | -6/Extension | Discovered new exit (range 6) 13788 | -6/Extension | Entered Cetus 13788 | -6/Cetus | Accompanied by 24 allies (A7) 13793 | -6/Cetus | Acquired a Cetus Manufacturing Module code from A7 13800 | -6/Cetus | Spotted Cetus Guard 13802 | -6/Cetus | Spotted Cetus Guard 13802 | -6/Cetus | Spotted Cetus Guard 13803 | -6/Cetus | Build established: Commander-Mutant 13815 | -6/Cetus | Allies destroyed Cetus Guard 13815 | -6/Cetus | Destroyed Cetus Guard 13826 | -6/Cetus | Allies destroyed Cetus Guard 13853 | -6/Cetus | Lost 5 allies 13930 | -6/Cetus | Started Cetus Manufacturing Module 13955 | -6/Cetus | Manufactured an Enhanced Grunt 13980 | -6/Cetus | Manufactured an Enhanced Grunt 13992 | -6/Cetus | Discovered new exit (range 16) 14005 | -6/Cetus | Manufactured an Enhanced Grunt 14030 | -6/Cetus | Manufactured an Enhanced Grunt 14055 | -6/Cetus | Manufactured an Enhanced Grunt 14140 | -6/Cetus | Spotted Cetus Guard 14141 | -6/Cetus | Spotted Cetus Guard 14144 | -6/Cetus | Spotted Cetus Guard 14145 | -6/Cetus | Spotted Cetus Guard 14146 | -6/Cetus | Destroyed Cetus Guard 14150 | -6/Cetus | Destroyed Cetus Guard 14152 | -6/Cetus | Allies destroyed Cetus Guard 14157 | -6/Cetus | Destroyed Cetus Guard 14165 | -6/Cetus | Discovered new exit (range 16) 14174 | -6/Cetus | Met Revision 17 14507 | -6/Cetus | Entered Archives 14507 | -6/Archives | Accompanied by 22 allies (A7) 14552 | -6/Archives | Lost 3 allies 14558 | -6/Archives | Discovered new exit (range 15) 14685 | -6/Archives | Entered Hub_04(d) 14685 | -6/Hub_04(d) | Accompanied by 18 allies 14723 | -6/Hub_04(d) | Garrison activated, responded to threat 14809 | -6/Hub_04(d) | Lost 4 allies 14818 | -6/Hub_04(d) | Spotted B-75 Beast 14845 | -6/Hub_04(d) | Allies destroyed B-75 Beast 14862 | -6/Hub_04(d) | Lost 4 parts (1p1n2u) 14889 | -6/Hub_04(d) | Lost 10 allies 14893 | -6/Hub_04(d) | Identified exit to Factory 14893 | -6/Hub_04(d) | Network Hub disabled 14912 | -6/Hub_04(d) | Spotted Lightning 14927 | -6/Hub_04(d) | Allies destroyed Lightning 14963 | -6/Hub_04(d) | High security lockdown imminent 15043 | -6/Hub_04(d) | High security lockdown engaged 15045 | -6/Hub_04(d) | Entered Factory 15045 | -5/Factory | Accompanied by 1 ally 15045 | -5/Factory | Evolved 2 slots: Weapon x2 15107 | -5/Factory | Build established: Scavenger-Mutant 15342 | -5/Factory | Garrison activated, responded to threat 15345 | -5/Factory | First assault squad dispatched 15481 | -5/Factory | Build established: Scavenger-Skirmisher 15481 | -5/Factory | Incoming assault squad redirected 15526 | -5/Factory | Destroyed 10 combat bots 15560 | -5/Factory | Sucked down chute 15560 | -5/Factory | Entered Waste 15590 | -5/Waste | Spotted C-40 Crusher 15591 | -5/Waste | Lost 15 parts (1p6n5u3w) 15599 | -5/Waste | Spotted C-40 Crusher 15625 | -5/Waste | Crushed by Compactor (1 part destroyed) 15632 | -5/Waste | Crushed by Compactor (1 part destroyed) 15644 | -5/Waste | Spotted C-40 Crusher 15645 | -5/Waste | Crushed by Compactor (1 part destroyed, 1 dropped) 15647 | -5/Waste | Spotted C-40 Crusher 15653 | -5/Waste | Crushed by Compactor (1 part destroyed, 1 dropped) 15659 | -5/Waste | Found Prototype Launcher 15659 | -5/Waste | Identified Point Singularity Launcher 15660 | -5/Waste | Destroyed C-40 Crusher 15660 | -5/Waste | Destroyed C-40 Crusher 15684 | -5/Waste | Lost 4 parts (2n2u) 15701 | -5/Waste | Spotted C-40 Crusher 15719 | -5/Waste | Spotted C-40 Crusher 15741 | -5/Waste | Destroyed C-40 Crusher 15810 | -5/Waste | Discovered new exit (range 16) 15832 | -5/Waste | Entered Factory 15944 | -5/Factory | Build established: Mutant 16139 | -5/Factory | Identified exit to Upper Caves 16139 | -5/Factory | Watched by a mysterious "MATRIX" hacker. 16585 | -5/Factory | Found Hvy. Reflective Plating 16809 | -5/Factory | Discovered new exit (range 7) 16878 | -5/Factory | System corruption reached 10% 16973 | -5/Factory | Incoming investigation squad redirected 16983 | -5/Factory | Joined by Warlord Infantry squad 17022 | -5/Factory | Lost 3 allies 17208 | -5/Factory | Core integrity fell below 50% 17241 | -5/Factory | Joined by Warlord Muscle squad 17315 | -5/Factory | Entered Upper Caves 17361 | -5/Upper Caves | Attracted the attention of an 0b10 checkpoint 17409 | -5/Upper Caves | Learned 4 Factory zone layouts 17632 | -5/Upper Caves | Learned 12 Factory zone layouts 17636 | -5/Upper Caves | Learned 8 Factory zone layouts 17650 | -5/Upper Caves | Identified exit to Upper Caves 17650 | -5/Upper Caves | Learned location of 1 exit from Proximity Caves 17650 | -5/Upper Caves | Learned 8 Factory zone layouts 17650 | -5/Upper Caves | Learned 6 Proximity Caves zone layouts 17650 | -5/Upper Caves | Learned Armory emergency access door positions 17650 | -5/Upper Caves | Learned Extension garrison access intel 17651 | -5/Upper Caves | Attracted the attention of an 0b10 base 17658 | -5/Upper Caves | Entered another Upper Caves area 17663 | -5/Upper Caves | Discovered new exit (range 6) 17763 | -5/Upper Caves | Learned 8 Factory zone layouts 17905 | -5/Upper Caves | Attracted the attention of an 0b10 checkpoint 17996 | -5/Upper Caves | Build established: Scavenger-Tank 18302 | -5/Upper Caves | Discovered new exit (range 3) 18317 | -5/Upper Caves | Entered Warlord 18336 | -5/Warlord | System corruption cleaned by Quarantine Array 18561 | -5/Warlord | Opened Warlord's prototype stash 18577 | -5/Warlord | Found Prototype Device 18577 | -5/Warlord | Identified Exp. Phase Shifter 18582 | -5/Warlord | Found Prototype Processor 18582 | -5/Warlord | Identified Exp. Armor Integrity Analyzer 18768 | -5/Warlord | Warlord's base attacked by MAIN.C 18801 | -5/Warlord | Met Warlord 18956 | -5/Warlord | Found Prototype Energy Gun 18956 | -5/Warlord | Identified Vortex Rail 18959 | -5/Warlord | Found Prototype Energy Cannon 18959 | -5/Warlord | Identified Vortex Driver 18963 | -5/Warlord | Found Prototype Energy Gun 18963 | -5/Warlord | Identified Vortex Shotgun 19029 | -5/Warlord | Spotted WH-09K(L) 19050 | -5/Warlord | Warlord forces counterattacked 19051 | -5/Warlord | Rewired WH-09K(L) 19082 | -5/Warlord | Lost 9 allies 19088 | -5/Warlord | Spotted Striker 19090 | -5/Warlord | P-70 Sage assimilated allied ZO-HWR(g) 19140 | -5/Warlord | Lost 6 allies 19230 | -5/Warlord | Discovered new exit (range 15) 19238 | -5/Warlord | Lost 3 allies 19268 | -5/Warlord | P-80 Master assimilated allied Archangel 6b 19269 | -5/Warlord | Spotted Executioner 19269 | -5/Warlord | Entered Proximity Caves 19269 | -4/Proximity Caves | Accompanied by 2 allies 19270 | -4/Proximity Caves | Identified exit to Factory 19591 | -4/Proximity Caves | Spotted B-86 Titan 19697 | -4/Proximity Caves | Learned 8 Research zone layouts 19760 | -4/Proximity Caves | Entered Factory 19760 | -4/Factory | Accompanied by 2 allies 19760 | -4/Factory | Evolved 2 slots: Power x1, Propulsion x1 19761 | -4/Factory | Identified exit to Upper Caves 19762 | -4/Factory | Identified exit to Research 20049 | -4/Factory | Build established: Scavenger-Skirmisher 20126 | -4/Factory | Repaired Broken Cld. Antigrav System 20179 | -4/Factory | Repaired Hvy. Reflective Plating 20333 | -4/Factory | Incoming investigation squad redirected 20516 | -4/Factory | Repaired Hvy. Reflective Plating 20553 | -4/Factory | Repaired Broken Gravmag Array+ 20912 | -4/Factory | Fabricated Cld. Antigrav System? 21204 | -4/Factory | Repaired Hvy. Reflective Plating? 21307 | -4/Factory | Found Hvy. Reactive Plating 21403 | -4/Factory | Repaired Hvy. Rocket Launcher 21503 | -4/Factory | Build established: Scavenger-Tank 21642 | -4/Factory | Found Prototype Launcher 21642 | -4/Factory | Identified Com. Tesla Bomb Launcher 21719 | -4/Factory | Repaired Broken Helical Railgun 22054 | -4/Factory | Entered Upper Caves 22215 | -4/Upper Caves | Encountered a Warlord checkpoint 22339 | -4/Upper Caves | Discovered new exit (range 13) 22365 | -4/Upper Caves | Entered another Upper Caves area 22365 | -4/Upper Caves | Accompanied by 2 allies 22371 | -4/Upper Caves | Discovered exit to Research (range 15) 22458 | -4/Upper Caves | Attracted the attention of an 0b10 checkpoint 22559 | -4/Upper Caves | Attracted the attention of an 0b10 outpost 22739 | -4/Upper Caves | Discovered new exit (range 13) 22831 | -4/Upper Caves | Entered Zhirov 22831 | -4/Zhirov | Accompanied by 3 allies 22833 | -4/Zhirov | Discovered new exit (range 4) 22839 | -4/Zhirov | Met Zhirov 22846 | -4/Zhirov | Learned location of Command (-1) 22846 | -4/Zhirov | Learned location of Quarantine (-3) 22846 | -4/Zhirov | Learned location of Testing (-2) 22850 | -4/Zhirov | Zhirov requested help retrieving the SGEMP Prototype 22855 | -4/Zhirov | Found Alien Artifact 22855 | -4/Zhirov | Identified Integrated Dissipator 22855 | -4/Zhirov | Installed Integrated Dissipator, increased core heat dissipation (+20) 22896 | -4/Zhirov | Found Alien Artifact 23036 | -4/Zhirov | Entered Proximity Caves 23036 | -3/Proximity Caves | Accompanied by 3 allies 23054 | -3/Proximity Caves | Attracted the attention of an 0b10 outpost 23133 | -3/Proximity Caves | Attracted the attention of an 0b10 checkpoint 23474 | -3/Proximity Caves | Received a Behemoth hack from an annoying Tinkerer 23574 | -3/Proximity Caves | Discovered exit to Research (range 11) 23636 | -3/Proximity Caves | Entered Research 23636 | -3/Research | Accompanied by 1 ally 23636 | -3/Research | Evolved 2 slots: Propulsion x1, Utility x1 23637 | -3/Research | Identified exit to Quarantine 23637 | -3/Research | Identified exit to Research 23637 | -3/Research | Identified exit to Armory 23836 | -3/Research | Revision forces began assault on 0b10 23860 | -3/Research | Met up with Revision 17++ 23946 | -3/Research | Build established: Scavenger-Sprinter 23974 | -3/Research | Spotted B-86 Titan 24001 | -3/Research | Lost 4 allies 24120 | -3/Research | Spotted B-86 Titan 24336 | -3/Research | Research terminal network offline 24465 | -3/Research | Lost 4 allies 24493 | -3/Research | Repaired Hvy. Armor Plating 24562 | -3/Research | Repaired Mic. Antimatter Reactor+ 24629 | -3/Research | Discovered exit to Research (range 7) 24651 | -3/Research | Spotted Striker 24654 | -3/Research | Discovered exit to Quarantine (range 19) 24695 | -3/Research | Entered another Research area 24695 | -2/Research | Warlord forces began assault on 0b10 24695 | -2/Research | Evolved 2 slots: Utility x2 24700 | -2/Research | Discovered new exit (range 14) 24782 | -2/Research | Identified exit to Access 24782 | -2/Research | Identified exit to Testing 24784 | -2/Research | Build established: Scavenger-Tank 24785 | -2/Research | Fabricated Combat Drone Bay? 24787 | -2/Research | Met up with Warlord 24805 | -2/Research | Research machine network offline 24903 | -2/Research | Found Point Singularity Launcher 25095 | -2/Research | Spotted Executioner 25097 | -2/Research | Spotted Executioner 25199 | -2/Research | Build established: Tank 25214 | -2/Research | Borebot progress halted 25291 | -2/Research | Spotted Striker 25293 | -2/Research | Spotted Executioner 25293 | -2/Research | Spotted Executioner 25294 | -2/Research | Spotted Executioner 25395 | -2/Research | Destroyed Striker 25471 | -2/Research | Spotted Striker 25527 | -2/Research | Found Prototype Processor 25527 | -2/Research | Identified Exp. Core Analyzer 25542 | -2/Research | Found Adv. Powered Armor 25547 | -2/Research | Found Prototype Processor 25547 | -2/Research | Identified Exp. Targeting Computer 25551 | -2/Research | Spotted Executioner 25554 | -2/Research | Spotted Striker 25575 | -2/Research | Borebot progress halted 25583 | -2/Research | Destroyed Executioner 25586 | -2/Research | Spotted Striker 25588 | -2/Research | Spotted Executioner 25696 | -2/Research | Warlord invited to help at Command 25696 | -2/Research | Given Cave Seal Controls access code 25723 | -2/Research | Spotted Executioner 25764 | -2/Research | Entered Access 25764 | -1/Access | Evolved 2 slots: Utility x2 25905 | -1/Access | Build established: Scavenger-Tank 25937 | -1/Access | Lost 4 allies 26301 | -1/Access | Identified exit to Command 26501 | -1/Access | Central database locked down 26504 | -1/Access | Build established: Scavenger-Gunner 26607 | -1/Access | Targeted by mysterious "MATRIX" hacker. 26838 | -1/Access | Spotted B-99 Colossus 26899 | -1/Access | Befriended a Behemoth using the annoying Tinkerer's hack 27252 | -1/Access | Destroyed 8 combat bots 27255 | -1/Access | Found Corrupted Prototype Ballistic Gun 27255 | -1/Access | Identified Multirail 27264 | -1/Access | First assault squad dispatched 27352 | -1/Access | Lost 3 parts (1n1u1w) 27473 | -1/Access | Spotted B-99 Colossus 27474 | -1/Access | Spotted B-99 Colossus 27512 | -1/Access | Lost 3 parts (1n2w) 27811 | -1/Access | Entered Command 27952 | -1/Command | Incoming investigation squad redirected 28114 | -1/Command | Disengaged cave seal 28115 | -1/Command | Welcomed Warlord to Command 28143 | -1/Command | System corruption reached 10% 28168 | -1/Command | Disengaged cave seal 28226 | -1/Command | Lost 10 allies 28273 | -1/Command | Spotted B-99 Colossus 28311 | -1/Command | First assault squad dispatched 28330 | -1/Command | Lost 4 allies 28557 | -1/Command | Spotted M Guard 28562 | -1/Command | Spotted M Guard 28562 | -1/Command | Spotted Combat Programmer 28565 | -1/Command | Spotted Combat Programmer 28594 | -1/Command | Spotted 0K-29P(L) 28596 | -1/Command | Combat Programmer assimilated allied 01-EWK(K) 28598 | -1/Command | Spotted 01-EWK(K) 28624 | -1/Command | Destroyed Combat Programmer 28650 | -1/Command | All MAIN.C guards destroyed 28676 | -1/Command | Warlord commented on Warlord statues 28677 | -1/Command | Lost 17 parts (5n8u4w) 28677 | -1/Command | Found Prototype Reactor 28677 | -1/Command | Identified Zero-point Reactor 28680 | -1/Command | Found Prototype Launcher 28680 | -1/Command | Identified Ragnarok Missile Launcher 28681 | -1/Command | Lost 14 allies 28754 | -1/Command | Spotted Alpha 7 28754 | -1/Command | Spotted Executioner 28754 | -1/Command | Spotted Striker 28754 | -1/Command | Spotted Striker 28773 | -1/Command | Spotted Executioner 28773 | -1/Command | Spotted Executioner 28773 | -1/Command | Spotted Alpha 7 28773 | -1/Command | Spotted Executioner 28792 | -1/Command | Warlord destroyed during the assault 28812 | -1/Command | Core integrity fell below 50% 28832 | -1/Command | System corruption reached 30% 28836 | -1/Command | Core integrity fell below 20% 28846 | -1/Command | Destroyed by Executioner with Helical Railgun Last Messages --------------- 28836_ T72OD:X0KZY2M|V=/WV0N FMVGZ VKG 28837_ Destroyed Unknown Energy Gun. 28837_ Destroyed Imp. Quantum Reactor. 28837_ Destroyed Unknown Wheel. 28837_ M-36 Artificer destroyed. 28838_ Penetrated by Slug. 28839_ Singularity Device intercepted. 28839_ Slug penetrates Alpha 7. 28840_ Penetrated by Slug. 28840_ Slug penetrates Wall. 28841_ Singularity Device intercepted. 28841_ Penetrated by Slug. 28842_ Point Singularity Launcher destroyed. 28842_ Slug penetrates Wall. 28844_ Destroyed Imp. Quantum Reactor. 28844_ Cmb. Linear Gravjet destroyed. 28845_ Penetrated by Slug. 28845_ Slug penetrates Wall. 28846_ Dropped Exp. Matter Compressor. 28846_ Penetrated by Slug. Map ----- +----------------------------------------------------+ | ??????????????????# #?????# """" # # | | ???? %????????????#### ##?????# """" # # | | ???#//++#????????????#+######?# """" ] # # | | ???# % #??#######???# #?#! """" # # | | ??##= #??#"""" #???# !! #?# + ######## | | ##?" = #??#""R""#???# !! #?# = # #???# | | #?# !!####"" ""##### ! #?# # #???# | | #?# !% ! + = =#?# # #???# | | #?# *%= # #?########+## ##### | | ##" ! ############### | | ## ^ ########## | | # #????????# | | # % #????????# | | #????????# | | #####;;; #######+############### +????????#### | | ### # #????????????????????? | | ##; % # #????????????????????? | | #?; #????????????????????? | | #?# #????????????????????? | | #?# #????????????????????? | | #?# % 7 #????????????????????? | | #?# =[ [ E #???? +??????????????? | | #?# [ % [ 7 #?? #??????????????? | | #?# E #= #??????????????? | | #?###"##"## ; ???????????????? | | #??????##?# @ ###########??????????? | | #?????????## ;# #??????????? | | #??????????##""Y""#;##;#;# #??????????? | | #???????????#"""""## ###?# #??????????? | | #???????????#######?##???# #??????????? | | #+#+#####????????????????????#####+####??????????? | | % ##???????????????????????# #?????????????? | | % #???????????????????????# #?????????????? | | ##???????????????????????# #?????????????? | | #????????????????????????# #?????????????? | | % =#???????????????????###### #?????????????? | | ! %#???????????????????# # ###########???? | | % #???????????????????# + ## #???? | | % #???????????????????# # ## #???? | | % #???????????????????# # ## #???? | | [ #???????????????????# # ## #???? | | " """ #???????????????????# # ## #???? | | "T""" #???????????????????# # ## #???? | | ######+###??????????????????# ! + ## ] #???? | | = #??????????????????# # ## #???? | | #??????????????????###### ## #???? | | """" % #??????????????????????# #####+######## | | """" #??????????????????????# [%= | | """" #??????????????????????# %= | | """" #??????????????????????# | +----------------------------------------------------+ Best States ------------- Heat Dissipation 141 Energy Generation 48 Energy Capacity 815 Matter Stores 300 Matter Capacity 600 Sight Range 23 Robot Scan Range 15 Terrain Scan Density 10 Jamming Range 16 Power Amplification 20 Armor Coverage 825 Resistance: TH 25 Propulsion Shielding 90 Weapon Shielding 66 Point Defense Rating 240 Weapon Cycling 25 Evasion (%) 71 Targeting Accuracy 20 Melee Accuracy 8 Target Analysis 8 Recoil Reduction 6 Matter Filtering 50 Offensive Hacking 20 Defensive Hacking 22 Authchip Count 1 Item Schematics ----------------- Combat Drone Bay | -7/Data Miner | Free Lgt. Regenerative Plating | -7/Data Miner | Free Cld. Aerolev Unit | -7/Data Miner | Free Gravity Neutralizer | -7/Data Miner | Free Imp. Heavy Laser | -7/Data Miner | Free Hvy. Treads | -7/Data Miner | Free Imp. Kinecellerator | -7/Data Miner | Free Mass Driver | -7/Data Miner | Free Adv. Terrain Scanner | -7/Data Miner | Free Imp. Dynamic Insulation System | -7/Data Miner | Free Thunder Leg | -7/Data Miner | Free Cld. Airjet | -6/Factory | Scanalyzed Cld. Antigrav System | -4/Factory | Scanalyzed Point Singularity Launcher | -4/Factory | Scanalyzed Assault Drone Bay | -4/Zhirov | Free Exp. Heat Sink | -4/Zhirov | Free Exp. Optical Array | -4/Zhirov | Free Imp. Arc Thrower | -4/Zhirov | Free Robot Schematics ------------------ Y-54 Guardian | -7/Data Miner | Free W-25 Informer | -7/Data Miner | Free M-28 Smith | -7/Data Miner | Free G-50 Soldier | -7/Data Miner | Free M-22 Extractor | -7/Data Miner | Free L-41 Fighter | -7/Data Miner | Free H-66 Slayer | -7/Data Miner | Free Fabricated ------------ Cld. Aerolev Unit | x1 | -6/Factory | Authchip Cld. Aerolev Unit | x1 | -6/Factory | Authchip Cld. Antigrav System | x1 | -4/Factory | Authchip Combat Drone Bay | x1 | -2/Research Repaired ---------- Lgt. Angular Momentum Engine | 23% | -8/Materials Gauss Rifle | 41% | -7/Factory Cld. Antigrav System | 99% | -4/Factory | Broken Hvy. Reflective Plating | 16% | -4/Factory Hvy. Reflective Plating | 18% | -4/Factory Gravmag Array | 11% | -4/Factory | Broken Hvy. Reflective Plating | 16% | -4/Factory Hvy. Rocket Launcher | 12% | -4/Factory Helical Railgun | 11% | -4/Factory | Broken Hvy. Armor Plating | 44% | -3/Research Mic. Antimatter Reactor | 62% | -3/Research Studied --------- Hvy. Assault Rifle | -8/Materials | Hacked Gravmag System | -7/Factory | Hacked Greatsword | -6/Factory | Hacked Antigrav System | -5/Factory | Hacked Gravmag Array | -5/Factory | Hacked Imp. Antigrav System | -4/Factory | Hacked Cmb. Gravmag System | -3/Research | Hacked Mic. Antimatter Reactor | -3/Research | Hacked Cmb. Antigrav System | -1/Access | Hacked Antigrav Array | -1/Access | Hacked Alien Tech Used ----------------- Integrated Dissipator Achievements -------------- All Kinds Of Bad News Dramatic Entrance Hard Hitter No Explosion For You Oh No You Don't! Professional Mechanic Reappropriation Challenges ------------ None Game ------ Seed SwarmImpactDisintegrator Manual? 0 Play Time 06:13:23 Cumulative 54.8 hours Start 2026.04.21 @ 11:26:46 End 2026.04.29 @ 12:58:45 Sessions 27 Manual Loads 0 Difficulty Rogue Special Mode None Game No. 23 Rogue 23 Adventurer 0 Explorer 0 Win Type - Total 2 Types 1/0/1/0/0/0/0/0/0/0 Lore% 43 Gallery% 44 Achievement% 41 Wizard Run 0 Options --------- Layout 1 ASCII 0 Keyboard 1 Movement Arrows Keybinds 0 Fullscreen 1 Font 24/Smallcaps Map View 50x35 Zoom Use 0% Tactical HUD 1 Map Filters NONE Filters NONE Steam 1 RUN: fcb968c6-6f13-4672-826a-100c46d04742